Workbook

Sheet 指引
A1: 紫金矿业ESG数据绩效表（2024） | L1: 发布/更新时间:2025/3/21
A3: 数据绩效表说明
A4: 边界主体 | B4: 紫金矿业集团股份有限公司（本公司），采用运营控制权法，即涵盖公司所有实际运营控制的公司
A5: 发布时间 | B5: 2025年3月21日
A6: 时间说明 | B6: 数据按财年披露，本公司财年为1月1日-12月31日
A7: 参考标准 | B7: 上海证券交易所上市公司自律监管指引第14号——可持续发展报告（试行）
B8: 香港联合交易所有限公司主板上市规则附录C2《环境、社会及管治报告指引》
B9: 全球报告倡议组织（GRI）可持续发展报告标准2021版
B10: 可持续会计准则委员会（SASB）金属与采矿业标准；
B11: 气候相关财务信息披露工作组（TCFD）建议报告
B12: 国际可持续准则理事会《国际财务报告可持续披露准则第1号\第2号》
B13: 中国社会科学院《中国企业社会责任报告企业社会责任编写标准CASS-CSR6.0之一般采矿业》（CASS6.0）
A14: 数据说明 | B14: 数据表中的数据来自于公司年度报告及ESG报告
A15: 数据保证 | B15: 经济数据经安永华明会计师事务所（特殊普通合伙）审计，其余ESG数据经南德认证检测（中国）有限公司上海分公司有限保证鉴证
A16: 获取方式 | B16: 请于紫金矿业官网ESG专栏下载
A18: 数据绩效表构成
A19: 指引 | C19: 本数据表说明
A20: 环境类 | C20: 紫金矿业主要的环境绩效，数据来源企业ESG报告
A21: 社会类 | C21: 紫金矿业主要的社会绩效，数据来源企业ESG报告
A22: 管治类 | C22: 紫金矿业主要的管治绩效，数据来源企业ESG报告
A23: 经济类 | C23: 紫金矿业主要的经济绩效，数据来源企业年报保持一致
A24: 附表-ISO 14001认证企业清单 | C24: 该表详细列示了紫金矿业已获得ISO 14001认证和未获得认证的生产运营点情况
A25: 附表-ISO 45001认证企业清单 | C25: 该表详细列示了紫金矿业已获得ISO 45001认证和未获得认证的生产运营点情况
A26: 附表-尾矿库信息披露 | C26: 紫金矿业目前所运营的所有尾矿库的基本信息和风险管理情况

Sheet 环境类
A1: 紫金矿业ESG数据绩效表（2024） | I1: =指引!L1 -> 发布/更新时间:2025/3/21
A2: 环境类绩效表现
A4: 环保投入数据：
A5: 指标 | C5: 单位 | D5: 2024 | E5: 2023 | F5: 2022 | G5: 2021 | H5: 2020 | I5: 2019
A6: 环保投入 | C6: 亿元 | D6: 14.34 | E6: 13.70 | F6: 14.67 | G6: 14.2 | H6: 10.92 | I6: 7.25
A7: -生态恢复投入 | C7: 亿元 | D7: 1.70 | E7: 3.69 | F7: 4.89 | G7: 3.35 | H7: 0.96 | I7: 0.95
A8: 恢复植被面积 | C8: 百万平方米 | D8: 8.03 | E8: 6.22 | F8: 12.75 | G8: 7.76 | H8: 3.33 | I8: 5.25
A9: 种植花木 | C9: 百万株 | D9: 1.66 | E9: 3.86 | F9: 1.21 | G9: 1.15 | H9: 0.41 | I9: 1.34
A11: 气候变化数据：
A12: 指标 | C12: 单位 | D12: 2024 | E12: 2023 | F12: 2022 | G12: 2021 | H12: 2020 | I12: 2019
A13: GHG排放总量（SCOPE1+2） | C13: 百万tCO2e | D13: 6.99 | E13: 8.52 | F13: 7.87 | G13: 7.13 | H13: 6.11 | I13: 5.35
A14: -范围一GHG排放(SCOPE1) | C14: 百万tCO2e | D14: 2.89 | E14: 3.65 | F14: 3.14 | G14: 2.81 | H14: 2.54 | I14: 2.02
A15: -范围二GHG排放(SCOPE2) | C15: 百万tCO2e | D15: 4.11 | E15: 4.87 | F15: 4.73 | G15: 4.32 | H15: 3.57 | I15: 3.33
A16: -范围三GHG排放(SCOPE3) | C16: 百万tCO2e | D16: 4.42 | E16: - | F16: / | G16: / | H16: / | I16: /
A17: 万元工业增加值GHG排放量 | C17: tCO2e/万元工业增加值 | D17: 1.64 | E17: 2.08 | F17: 1.96 | G17: 2.17 | H17: 2.52 | I17: /
A18: 气候变化专项资金 | C18: 亿元 | D18: 3.74 | E18: 4.56 | F18: 5.93 | G18: / | H18: / | I18: /
A19: 注：
A20: 1.直接GHG排放的计算过程中，位发热量、单位热值含碳量、碳氧化率等参数主要依据采购燃料供应商的数据以及所在国各行业温室气体排放核算方法
A21: 2.间接GHG排放的计算过程中，各企业均使用当地的电网二氧化碳排放因子标准（location based）乘以外购用电总量，不会将外购用电中的清洁能源剔除计算
A22: 3.其他间接温室气体排放(SCOPE3)的计算过程中，2024年包括“外购商品与服务”、“上游运输”、“商务差旅”、“雇员通勤‘、”下游运输“，2023年仅包含”商务差旅“产生的碳排放。
A23: 4.气候变化专项资金包括但不限于节能技改、油改电、新能源建设、余热回收等项目，与环保投入的统计存在一定交叉
A24: 5.单位工业增加值的温室气体排放是指企业在生产过程中新增价值部分所产生的温室气体排放量。工业增加值按照收入法计算（即工业增加值=固定资产折旧+劳动者报酬+生产税净值+营业盈余）
A25: 6.报告期内，我们对往年的气候变化数据进行了回溯修正，具体调整方式请参考本报告“气候变化”章节
A26: 能源消耗数据
A27: 指标 | C27: 单位 | D27: 2024 | E27: 2023 | F27: 2022 | G27: 2021 | H27: 2020 | I27: 2019
A28: 直接能源 | B28: 煤油 | C28: 吨 | D28: 0 | E28: 379 | F28: 592 | G28: 1,481 | H28: 1,833 | I28: 3,929
B29: 柴油 | C29: 吨 | D29: 532,980 | E29: 529,236 | F29: 392,930 | G29: 345,894 | H29: 256,856 | I29: 202,336
B30: 汽油 | C30: 吨 | D30: 1,420 | E30: 614 | F30: 1,061 | G30: 1,502 | H30: 1,457 | I30: 1,162
B31: 煤炭 | C31: 吨 | D31: 461,163 | E31: 528,850 | F31: 560,249 | G31: 636,682 | H31: 859,536 | I31: 610,665
B32: 天然气 | C32: 百万立方米 | D32: 32 | E32: 25 | F32: 18 | G32: 23 | H32: 14 | I32: 36
B33: 其他直接能源 | C33: TJ | D33: 274 | E33: 18 | F33: 57 | G33: 231 | H33: 425 | I33: 521
A34: 间接能源 | B34: 电力 | C34: GWh | D34: 10,372 | E34: 9,300 | F34: 8,127 | G34: 6,681 | H34: 5,335 | I34: 4,893
B35: -灰电 | C35: GWh | D35: 5,061 | E35: 5,057 | F35: 5,485 | G35: 6,331 | H35: 5,011 | I35: 4,687
B36: -水电 | C36: GWh | D36: 5,107 | E36: 4,003 | F36: 2,544 | G36: 347 | H36: 324 | I36: 206
B37: -太阳能 | C37: GWh | D37: 169 | E37: 83 | F37: 43 | G37: 3 | H37: / | I37: /
B38: -其他清洁能源 | C38: GWh | D38: 35 | E38: 157 | F38: 53 | G38: / | H38: / | I38: /
B39: 蒸汽 | C39: TJ | D39: -2,868 | E39: -1,496 | F39: -936 | G39: -803 | H39: -783 | I39: -908
A40: 综合能耗量(按GWh计算)：
A41: 能耗总量 | C41: GWh | D41: 19,602.54 | E41: 19,022.46 | F41: 16,294.54 | G41: 15,236.89 | H41: 14,271.21 | I41: 11,377.08
A42: 直接能源 | C42: GWh | D42: 10,047.03 | E42: 10,137.58 | F42: 8,419.35 | G42: 8,777.92 | H42: 9,153.24 | I42: 6,735.34
A43: -煤油 | C43: GWh | D43: 0 | E43: 4.42 | F43: 7.09 | G43: 18.41 | H43: 22.79 | I43: 48.84
A44: -柴油 | C44: GWh | D44: 6,797.82 | E44: 6,704.81 | F44: 4,654.41 | G44: 4,163.55 | H44: 3,091.80 | I44: 2,440.22
A45: -汽油 | C45: GWh | D45: 17.03 | E45: 7.54 | F45: 12.71 | G45: 18.70 | H45: 18.14 | I45: 14.46
A46: -煤炭 | C46: GWh | D46: 2,824.36 | E46: 3,151.64 | F46: 3,545.46 | G46: 4,265.43 | H46: 5,744.37 | I46: 4,042.94
A47: -天然气 | C47: GWh | D47: 331.68 | E47: 264.19 | F47: 183.81 | G47: 247.77 | H47: 157.95 | I47: 44.27
A48: -其他直接能源 | C48: GWh | D48: 76.14 | E48: 4.98 | F48: 15.88 | G48: 64.06 | H48: 118.19 | I48: 144.61
A49: 间接能源 | C49: GWh | D49: 9,555.50 | E49: =SUM(E50:E51) -> 8,884.88 | F49: 7,875.19 | G49: 6,458.25 | H49: 5,117.37 | I49: 4,435.47
A50: -电力 | C50: GWh | D50: 10,372.16 | E50: 9,300.31 | F50: 8,126.68 | G50: 6,681.20 | H50: 5,335.00 | I50: 4,893.00
A51: -蒸汽 | C51: GWh | D51: -816.66 | E51: -415.43 | F51: -251.49 | G51: -222.95 | H51: -217.63 | I51: -252.14
A52: 综合能耗量(按TJ计算)：
A53: 能耗总量 | C53: TJ | D53: =D41*3.6 -> 70,569.14 | E53: =E41*3.6 -> 68,480.86 | F53: 58,655.64 | G53: 54,848.40 | H53: 51,372.24 | I53: 40,954.20
A54: 直接能源 | C54: TJ | D54: 36,169.32 | E54: =E42*3.6 -> 36,495.29 | F54: 30,307.23 | G54: 31,598.00 | H54: 32,949.02 | I54: 24,245.30
A55: -煤油 | C55: TJ | D55: 0 | E55: 15.91 | F55: 25.51 | G55: 66.26 | H55: 82.03 | I55: 175.83
A56: -柴油 | C56: TJ | D56: 24,472.15 | E56: 24,137.32 | F56: 16,754.54 | G56: 14,987.58 | H56: 11,129.59 | I56: 8,784.08
A57: -汽油 | C57: TJ | D57: 61.30 | E57: 27.14 | F57: 45.73 | G57: 67.31 | H57: 65.28 | I57: 52.05
A58: -煤炭 | C58: TJ | D58: 10,167.71 | E58: 11,345.90 | F58: 12,762.66 | G58: 15,354.34 | H58: 20,678.08 | I58: 14,553.42
A59: -天然气 | C59: TJ | D59: =D47*3.6 -> 1,194.05 | E59: 951.08 | F59: 664.99 | G59: 891.91 | H59: 568.57 | I59: 159.36
A60: -其他直接能源 | C60: TJ | D60: 274.11 | E60: 17.93 | F60: 57.16 | G60: 230.61 | H60: 425.46 | I60: 520.57
A61: 间接能源 | C61: TJ | D61: 34,399.80 | E61: 31,985.57 | F61: 28,348.41 | G61: 23,247.83 | H61: 18,421.05 | I61: 15,966.41
A62: -电力 | C62: TJ | D62: 37,339.78 | E62: 33,481.12 | F62: 29,253.70 | G62: 24,050.39 | H62: 19,204.46 | I62: 17,613.39
A63: -蒸汽 | C63: TJ | D63: -2,939.97 | E63: -1,495.55 | F63: -935.70 | G63: -802.56 | H63: -783.41 | I63: -907.62
A64: 能源结构：
A65: 能源消耗强度 | C65: MWh/万元工业增加值 | D65: 4.59 | E65: 3.46 | F65: 3.25 | G65: 3.75 | H65: 4.32 | I65: /
C66: MJ/万元工业增加值 | D66: =D65*3.6 -> 16.52 | E66: 12.45 | F66: 11.69 | G66: 13.50 | H66: 15.53 | I66: /
A67: 直接能源（化石能源）占比 | C67: % | D67: =D42/D41*100 -> 51.25 | E67: =E42/E41*100 -> 53.29 | F67: 51.67 | G67: 57.61 | H67: 64.14 | I67: 59.20
A68: 间接能源占比 | C68: % | D68: =D49/D41*100 -> 48.75 | E68: =E49/E41*100 -> 46.71 | F68: 48.33 | G68: 42.39 | H68: 35.86 | I68: 40.80
A69: 可再生能源占总用能比例 | C69: % | D69: 27.09 | E69: 21.48 | F69: 16.21 | G69: / | H69: / | I69: /
A70: 清洁能源：
A71: 清洁电力装机量 | C71: MW | D71: 767.36 | E71: 244.05 | F71: 167.48 | G71: 117.00 | H71: / | I71: /
A72: 清洁电力发电量 | C72: GWh | D72: 564.54 | E72: 380.90 | F72: 257.46 | G72: 113.26 | H72: / | I72: /
A73: -水能 | C73: GWh | D73: 360.03 | E73: 262.01 | F73: 201.43 | G73: 107.10 | H73: / | I73: /
A74: -太阳能 | C74: GWh | D74: 169.23 | E74: 83.05 | F74: 31.49 | G74: 6.16 | H74: / | I74: /
A75: -其他 | C75: GWh | D75: 35.27 | E75: 35.84 | F75: 24.54 | G75: / | H75: / | I75: /
A76: 注：
A77: 1.其他直接能源包括液化石油气、焦粉等
A78: 2.电力使用统计中，我们统计了向电力供应商了解到采购的可再生能源及来自于我们自发的可再生能源共同计入使用的可再生能源，这部分能源在未能进一步分类的情况下均计入水电部分。对于未了解到组成成分的电力我们均计入灰电，在计算GHG排放时，我们按外购用电统一计算，不会将其中的可再生能源剔除
A79: 3.此处清洁能源发电量指的是紫金矿业的清洁能源发电机组发出的电，并非紫金矿业实际使用的清洁电力
A81: 取排水数据
A82: 取水类别 | C82: 单位 | D82: 2024 | E82: 2023 | F82: 2022 | G82: 2021 | H82: 2020 | I82: 2019
A83: 总取水量 | C83: 百万吨 | D83: 72.52 | E83: 66.13 | F83: 72.71 | G83: 60.56 | H83: 50.77 | I83: 45.23
A84: 新鲜水用水强度 | C84: 吨/百万元营收 | D84: =(D83*1000000)/(经济类!C7*100) -> 238.84 | E84: 225.39 | F84: 269.00 | G84: 269.04 | H84: 296.04 | I84: 332.33
A85: 总排水量 | C85: 百万吨 | D85: 59.16 | E85: 46.40 | F85: 51.52 | G85: 42.29 | H85: 20.82 | I85: 20.56
A86: 水循环利用率 | C86: % | D86: 93.46 | E86: 94.80 | F86: 94.29 | G86: 92.02 | H86: 91.86 | I86: 91.29
A87: 取水类型
A88: -淡水 | C88: 百万吨 | D88: 57.40 | E88: 55.47 | F88: 61.96 | G88: 40.47 | H88: 35.59 | I88: 33.97
A89: -非淡水 | C89: 百万吨 | D89: 15.12 | E89: 10.66 | F89: 10.75 | G89: 20.09 | H89: 15.18 | I89: 11.25
A90: 取水来源
A91: -地表水 | C91: 百万吨 | D91: 46.70 | E91: 47.09 | F91: 65.09 | G91: 43.11 | H91: 34.83 | I91: 31.42
A92: -地下水 | C92: 百万吨 | D92: 22.72 | E92: 13.97 | F92: 3.08 | G92: 8.78 | H92: 7.71 | I92: 5.65
A93: -外购水 | C93: 百万吨 | D93: 3.10 | E93: 5.08 | F93: 4.54 | G93: 4.58 | H93: 3.71 | I93: 3.22
A94: 排水类型
A95: -淡水 | C95: 百万吨 | D95: 57.43 | E95: 36.31 | F95: 46.90 | G95: / | H95: / | I95: /
A96: -非淡水 | C96: 百万吨 | D96: 1.73 | E96: 10.09 | F96: 4.62 | G96: / | H96: / | I96: /
A97: 排水去向
A98: -地表 | C98: 百万吨 | D98: 54.72 | E98: 46.19 | F98: 51.48 | G98: / | H98: / | I98: /
A99: -地下 | C99: 百万吨 | D99: 0 | E99: 0 | F99: 0 | G99: / | H99: / | I99: /
A100: -外送至其他组织处理 | C100: 百万吨 | D100: 4.44 | E100: 0.21 | F100: 0.04 | G100: / | H100: / | I100: /
A101: 处于高水风险地区的取水量
A102: 高水风险地区取水量 | C102: 百万吨 | D102: 21.42 | E102: 12.42 | F102: 10.06 | G102: 8.81 | H102: 6.48 | I102: 7.10
A103: 水风险高地区取水量占比 | C103: % | D103: 29.53 | E103: 18.77 | F103: 13.83 | G103: 14.55 | H103: 12.77 | I103: 15.69
A104: 注：
A105: 1.取水量指的是从各源头收贮使用的新鲜水。现阶段我们正系统性梳理水平衡模型，雨水统计的可靠性较低，且不是我们重要的水资源来源，故暂不披露雨水量，待未来梳理完善后披露
A106: 2.水循环利用率=（总用水量-新鲜水取水总量）/总用水量
A107: 3.如我们在ESG报告所述，我们位于高水风险地区的项目及周边利益相关方普遍不存在实质性的水风险，增长的取水量均经过了水资源论证，不会对周边社区、自然环境以及其他利益相关方产生实质性影响
A108: 主要水污染物数据
A109: 指标 | C109: 单位 | D109: 2024 | E109: 2023 | F109: 2022 | G109: 2021 | H109: 2020 | I109: 2019
A110: 排放量
A111: COD | C111: 吨 | D111: 310.20 | E111: 294.06 | F111: 373.51 | G111: 524.13 | H111: 299.82 | I111: 346.33
A112: 氨氮 | C112: 吨 | D112: 44.94 | E112: 28.14 | F112: 45.92 | G112: 27.60 | H112: 3.58 | I112: 14.43
A113: 总铜 | C113: 吨 | D113: 2.30 | E113: 2.14 | F113: 1.57 | G113: 2.26 | H113: 0.73 | I113: 0.60
A114: 总锌 | C114: 吨 | D114: 1.27 | E114: 0.59 | F114: 0.80 | G114: 1.27 | H114: 0.46 | I114: 0.40
A115: 排放强度
A116: COD | C116: g/百万元营收 | D116: =D111*1000000/(经济类!$C$7*100) -> 1,021.62 | E116: 1,002.25 | F116: 1,381.83 | G116: 2,328.43 | H116: 1,748.21 | I116: 2,544.70
A117: 氨氮 | C117: g/百万元营收 | D117: =D112*1000000/(经济类!$C$7*100) -> 148.00 | E117: 95.91 | F117: 169.89 | G117: 122.61 | H117: 20.87 | I117: 106.03
A118: 总铜 | C118: g/百万元营收 | D118: =D113*1000000/(经济类!$C$7*100) -> 7.57 | E118: 7.29 | F118: 5.81 | G118: 10.04 | H118: 4.26 | I118: 4.41
A119: 总锌 | C119: g/百万元营收 | D119: =D114*1000000/(经济类!$C$7*100) -> 4.17 | E119: 2.01 | F119: 2.96 | G119: 5.64 | H119: 2.68 | I119: 2.94
A120: 注:报告期内水污染物排放量的大幅下降与多个因素有关，其中包含降雨量变动、某些运营位点进行停产的影响，预计未来排放量可能仍会处于波动状态
A122: 矿区酸性岩排水数据
A123: 指标 | C123: 单位 | D123: 2024 | E123: 2023 | F123: 2022 | G123: 2021
A124: 有酸性岩排水风险矿区总数 | C124: 个 | D124: 6 | E124: 9 | F124: 7 | G124: 7
A125: -预计会发生酸性岩石排水矿区 | C125: 个 | D125: - | E125: - | F125: - | G125: 1
A126: -积极缓解酸性岩石排水矿区 | C126: 个 | D126: - | E126: 4 | F126: 3 | G126: 2
A127: -正在接受处理或补救酸性岩石排水矿区 | C127: 个 | D127: 6 | E127: 5 | F127: 4 | G127: 4
A129: 一般废弃物数据
A130: 指标 | C130: 单位 | D130: 2024 | E130: 2023 | F130: 2022 | G130: 2021 | H130: 2020 | I130: 2019
A131: 一般废弃物总产生量 | C131: 百万吨 | D131: 958.84 | E131: 959.72 | F131: 708.35 | G131: 640.50 | H131: 554.60 | I131: 452.18
A132: -现场综合利用 | C132: 百万吨 | D132: 144.29 | E132: 139.64 | F132: 99.24 | G132: 82.19 | H132: 66.44 | I132: 30.32
A133: -非现场综合利用 | C133: 百万吨 | D133: 2.30 | E133: 3.18 | F133: 4.95 | G133: 5.05 | H133: 5.16 | I133: 4.47
A134: -现场最终处置 | C134: 百万吨 | D134: 810.32 | E134: 816.76 | F134: 519.31 | G134: 444.82 | H134: 381.22 | I134: 312.62
A135: -非现场最终处置 | C135: 百万吨 | D135: 1.94 | E135: 0.14 | F135: 84.85 | G135: 108.44 | H135: 101.78 | I135: 104.77
A136: 综合利用率 | C136: % | D136: 15.29 | E136: 14.88 | F136: 14.71 | G136: 13.62 | H136: 12.91 | I136: 7.69
A137: 单位营收一般废弃物产生量 | C137: 吨/万元营收 | D137: =D131*1000000/(经济类!C7*10000) -> 31.58 | E137: 32.71 | F137: 26.21 | G137: 28.45 | H137: 32.34 | I137: 33.22
A138: 尾矿数据
A139: 尾矿产生总量 | C139: 百万吨 | D139: 208.14 | E139: 177.44 | F139: 159.94 | G139: 114.34 | H139: 97.38 | I139: 86.03
A140: 回收的尾矿总量 | C140: 百万吨 | D140: 50.89 | E140: 42.33 | F140: 36.95 | G140: 25.28 | H140: 20.73 | I140: 16.46
A141: 回收利用率 | C141: % | D141: 24.45 | E141: 23.86 | F141: 23.10 | G141: 22.11 | H141: 21.29 | I141: 19.13
A144: 危险废弃物数据
A145: 指标 | C145: 单位 | D145: 2024 | E145: 2023 | F145: 2022 | G145: 2021 | H145: 2020 | I145: 2019
A146: 危险废物总产生量 | C146: 吨 | D146: =SUM(D147:D150) -> 284,861.58 | E146: 160,885.78 | F146: 320,813.40 | G146: 357,214.01 | H146: 279,286.75 | I146: 414,012.78
A147: -现场综合利用 | C147: 吨 | D147: 182,661.67 | E147: 5,478.61 | F147: 1,827.42 | G147: 42,097.84 | H147: 25.06 | I147: 24.60
A148: -非现场综合利用 | C148: 吨 | D148: 29,756.60 | E148: 73,325.69 | F148: 153,484.30 | G148: 79,617.90 | H148: 64,747.03 | I148: 65,294.27
A149: -现场最终处置 | C149: 吨 | D149: 69,289.40 | E149: 76,072.02 | F149: 21,190.37 | G149: 228,658.34 | H149: 212,373.35 | I149: 345,905.39
A150: -非现场最终处置 | C150: 吨 | D150: 3,153.90 | E150: 6,009.46 | F150: 144,311.31 | G150: 6,839.93 | H150: 2,141.31 | I150: 2,788.52
A151: 综合利用率 | C151: % | D151: 74.57 | E151: 48.98 | F151: 48.41 | G151: 34.07 | H151: 23.19 | I151: 15.78
A152: 单位营收危险废物产生量 | C152: 吨/百万元营收 | D152: =D146/(经济类!C7*100) -> 0.94 | E152: 0.55 | F152: 1.19 | G152: 1.59 | H152: 1.63 | I152: 3.04
A154: 废气排放数据
A155: 指标 | C155: 单位 | D155: 2024 | E155: 2023 | F155: 2022 | G155: 2021 | H155: 2020 | I155: 2019
A156: 氮氧化物 | C156: 吨 | D156: 668.59 | E156: 687.19 | F156: 802.22 | G156: 888.41 | H156: 768.81 | I156: 957.17
A157: 二氧化硫 | C157: 吨 | D157: 1,401.88 | E157: 1,348.22 | F157: 1,248.70 | G157: 1,483.64 | H157: 1,344.86 | I157: 1,380.71
A158: 颗粒物质（PM） | C158: 吨 | D158: 337.56 | E158: 611.51 | F158: 616.23 | G158: 754.30 | H158: 646.60 | I158: 643.50
A159: 硫酸雾 | C159: 吨 | D159: 82.47 | E159: 78.55 | F159: 69.44 | G159: 76.91 | H159: 102.12 | I159: 48.38
A160: 氯化氢 | C160: 吨 | D160: 1.00 | E160: 2.01 | F160: 1.07 | G160: 0.22 | H160: 0.12 | I160: 0.19
A161: 氨气 | C161: 吨 | D161: 5.28 | E161: 0.87 | F161: 0.34 | G161: 1.00 | H161: 0.33 | I161: 0.01
A162: 硫化氢 | C162: 吨 | D162: 0.23 | E162: 1.25 | F162: 0.01 | G162: 0.00 | H162: 0.01 | I162: /
A163: 铅及其化合物 | C163: 吨 | D163: 0.87 | E163: 0.80 | F163: 1.11 | G163: 1.28 | H163: 0.97 | I163: 1.08
A164: 砷及其化合物 | C164: 吨 | D164: 0.71 | E164: 0.85 | F164: 0.77 | G164: 0.83 | H164: 0.76 | I164: 0.91
A165: 汞及其化合物 | C165: 吨 | D165: 0.06 | E165: 0.04 | F165: 0.03 | G165: 0.10 | H165: 0.02 | I165: 0.02
A166: 挥发性有机化合物（VOC） | C166: 吨 | D166: / | E166: 0.51 | F166: 0.84 | G166: 0.19 | H166: 0.22 | I166: /
A167: 注：
A168: 1.大气污染物总量根据废气检测报告污染物浓度和尾气流量估算得出
A169: 2.各公司各项大气污染物排放浓度，请详见公司年报
A170: 3.挥发性有机污染物（VOC）的排放来自于我们的原子公司紫金药剂，报告期内该子公司因股权转让事项已不再是我们的子公司，因此本报告期内没有相关数据的产生。
A172: 尾矿库数据
A173: 指标 | D173: 2024 | E173: 2023 | F173: 2022 | G173: 2021
A174: 尾矿库总数 | D174: 61 | E174: 60 | F174: 60 | G174: 52
A175: 活跃的尾矿库数量 | D175: 37 | E175: 37 | F175: 33 | G175: 37
A176: 高风险尾矿库数量 | D176: 0 | E176: 0 | F176: 0 | G176: 0
A178: 环保认证与审查
A179: 指标 | D179: 2024 | E179: 2023 | F179: 2022 | G179: 2021
A180: ISO14001:2015认证覆盖率 | D180: 100% | E180: 97.5% | F180: 97.5% | G180: 87.5%
A181: 环保审查覆盖率 | D181: 100% | E181: 100% | F181: 95.6% | G181: 92.5%
A182: 注：ISO14001:2015认证覆盖率是以2020年我们拥有的生产运营点为基准，截至报告期末获得认证的比例

Sheet 社会类
A1: =环境类!A1 -> 紫金矿业ESG数据绩效表（2024） | G1: =环境类!I1 -> 发布/更新时间:2025/3/21
A2: 社会类绩效表现
A4: 劳工数据
A5: 指标 | B5: 单位 | C5: 2024 | D5: 2023 | E5: 2022 | F5: 2021 | G5: 2020 | H5: 2019
A6: 员工人数
A7: 员工总数 | B7: 人 | C7: 55,690 | D7: 55,239 | E7: 48,836 | F7: 43,876 | G7: 36,860 | H7: 36,605
A8: 承包商人数 | B8: 人 | C8: 37,458 | D8: 30,459 | E8: 28,222 | F8: / | G8: / | H8: /
A9: 性别结构
A10: -男性占比 | B10: % | C10: 85.63 | D10: 85.08 | E10: 85.08 | F10: 84.39 | G10: 83.86 | H10: 83.88
A11: -女性占比 | B11: % | C11: 14.37 | D11: 14.92 | E11: 14.92 | F11: 15.61 | G11: 16.14 | H11: 16.12
A12: 年龄结构
A13: -<30岁占比 | B13: % | C13: 24.29 | D13: 23.65 | E13: 25.38 | F13: 23.38 | G13: 17.01 | H13: 17.48
A14: -30≤Y<50岁占比 | B14: % | C14: 61.41 | D14: 61.53 | E14: 59.91 | F14: 60.93 | G14: 63.75 | H14: 60.10
A15: -≥50岁占比 | B15: % | C15: 14.31 | D15: 14.83 | E15: 14.71 | F15: 15.69 | G15: 19.24 | H15: 19.43
A16: 本地雇佣率 | B16: % | C16: 95.98 | D16: 95.85 | E16: 96.29 | F16: 96.04 | G16: 95.25 | H16: 95.11
A18: 员工流动
A19: 指标 | B19: 单位 | C19: 2024 | D19: 2023 | E19: 2022 | F19: 2021 | G19: 2020 | H19: 2019
A20: 新增员工人数 | B20: 人 | C20: 7,373 | D20: 7,570 | E20: 4,960 | F20: 7,016 | G20: 255 | H20: /
A21: 总流失率 | B21: % | C21: 8.49 | D21: 8.00 | E21: 8.66 | F21: 7.57 | G21: 9.31 | H21: 7.68
A22: 按性别划分
A23: 男性员工流失 | B23: % | C23: 8.38 | D23: 7.92 | E23: 8.55 | F23: 7.25 | G23: 8.72 | H23: 7.66
A24: 女性员工流失 | B24: % | C24: 9.18 | D24: 8.47 | E24: 9.33 | F24: 8.84 | G24: 12.39 | H24: 7.74
A25: 按年龄划分
A26: ＜30岁员工流失 | B26: % | C26: 10.88 | D26: 11.99 | E26: 11.52 | F26: 10.25 | G26: 12.42 | H26: 9.86
A27: 30≤Y＜50岁员工流失 | B27: % | C27: 7.69 | D27: 7.28 | E27: 7.63 | F27: 5.63 | G27: 6.83 | H27: 6.48
A28: ≥50岁员工流失 | B28: % | C28: 7.72 | D28: 5.19 | E28: 7.48 | F28: 10.68 | G28: 14.78 | H28: 10.60
A29: 按地区划分
A30: 中国员工流失 | B30: % | C30: 9.33 | D30: 9.96 | E30: 9.75 | F30: 8.24 | G30: 10.51 | H30: 9.75
A31: 中国以外其他国家和地区员工流失 | B31: % | C31: 8.26 | D31: 6.01 | E31: 6.30 | F31: 6.75 | G31: 7.84 | H31: 5.17
A32: 注：人力数据统计由各子公司上报汇总后计算得出。部分子公司因当地反歧视、个人隐私保护等当地法律或惯例等原因，公司不被允许统计员工年龄及性别等信息，导致在计算各类别员工比例时员工总数与实际总数有一定出入，我们依据实际统计到的比例进行披露，2024年这类未计入公司员工性别、年龄比例的员工约2,155人
A34: 员工培训数据
A35: 年份 | B35: 2024 | D35: 2023 | F35: 2022
A36: 指标 | B36: 受训比例（%） | C36: 平均受训（小时） | D36: 受训比例（%） | E36: 平均受训（小时） | F36: 受训比例（%） | G36: 平均受训（小时）
A37: 按性别划分
A38: 男性员工 | B38: 98.01 | C38: 40.50 | D38: 96.39 | E38: 29.98 | F38: 96.72 | G38: 25.90
A39: 女性员工 | B39: 97.47 | C39: 42.38 | D39: 95.33 | E39: 30.29 | F39: 96.49 | G39: 25.00
A40: 按职位划分
A41: 高层员工 | B41: 94.65 | C41: 33.02 | D41: 93.74 | E41: 27.86 | F41: 100.00 | G41: 36.74
A42: 中层员工 | B42: 99.47 | C42: 45.90 | D42: 96.39 | E42: 30.40 | F42: 88.72 | G42: 39.12
A43: 基层员工 | B43: 99.10 | C43: 45.40 | D43: 97.46 | E43: 29.15 | F43: 90.37 | G43: 24.12
A44: 注：基层员工中不含海外基层员工、未定级员工和8级以下员工
A46: 集体谈判协议覆盖率
A47: 指标 | B47: 单位 | C47: 2024 | D47: 2023 | E47: 2022 | F47: 2021 | G47: 2020 | H47: 2019
A48: 总集体谈判协议覆盖率 | B48: % | C48: 46.98 | D48: 74.68 | E48: 82.62 | F48: / | G48: / | H48: /
A49: 按地区划分
A50: 集体谈判协议涵盖的本国在职员工的百分比 | B50: % | C50: 48.25 | D50: 76.44 | E50: 84.19 | F50: 70.33 | G50: / | H50: /
A51: 集体谈判协议涵盖的外国在职员工的百分比 | B51: % | C51: 16.59 | D51: 25.76 | E51: 42.00 | F51: 35.33 | G51: / | H51: /
A53: 罢工和非技术延误
A54: 指标 | B54: 单位 | C54: 2024 | D54: 2023 | E54: 2022 | F54: 2021 | G54: 2020 | H54: 2019
A55: 非技术延误的次数 | B55: 次 | C55: 6 | D55: 3 | E55: 4 | F55: 0 | G55: / | H55: /
A56: 非技术延误的时间 | B56: 天 | C56: 27 | D56: 112 | E56: 230 | F56: 0 | G56: / | H56: /
A57: 罢工和停工的次数 | B57: 次 | C57: 6 | D57: 1 | E57: 2 | F57: 4 | G57: / | H57: /
A58: 罢工和停工的持续时间 | B58: 天 | C58: 10.5 | D58: 3 | E58: 0 | F58: 3.75 | G58: / | H58: /
A60: 安全生产数据
A61: 指标 | B61: 单位 | C61: 2024 | D61: 2023 | E61: 2022 | F61: 2021 | G61: 2020 | H61: 2019
A62: 安全生产投入 | B62: 亿元 | C62: 32.01 | D62: 28.04 | E62: 21.23 | F62: 14.93 | G62: 8.91 | H62: 6.75
A63: ISO45001:2018认证覆盖率 | B63: % | C63: 100 | D63: 97.50 | E63: 95.00 | F63: 87.50 | G63: / | H63: /
A64: 自有员工工亡人数 | B64: 人 | C64: 1 | D64: 1 | E64: 1 | F64: 4 | G64: 0 | H64: 0
A65: 承包商工亡人数 | B65: 人 | C65: 6 | D65: 10 | E65: 2 | F65: 4 | G65: 2 | H65: 1
A66: 因工伤损失工作日数 | B66: 天 | C66: 4,887.50 | D66: 9,503.00 | E66: 12,940.00 | F66: 2,540.75 | G66: 5,909.50 | H66: 4,448.25
A67: 百万工时损失工时率 | B67: / | C67: 170.89 | D67: 311.33 | E67: 494.38 | F67: 105.62 | G67: 328.35 | H67: 251.88
A68: 百万工时损工事故率（LTIR ） | B68: / | C68: 0.34 | D68: 0.25 | E68: 0.29 | F68: 0.30 | G68: 0.33 | H68: 0.89
A69: 百万工时可记录事故率（TRIR） | B69: / | C69: 1.50 | D69: 0.91 | E69: 0.64 | F69: 0.68 | G69: 0.69 | H69: 1.37
A70: 百万工时未遂事故率 | B70: / | C70: 0.75 | D70: 0.88 | E70: 0.14 | F70: 0.18 | G70: 0.07 | H70: 0.16
A71: 总工时 | B71: 百万工时 | C71: 228.80 | D71: 244.18 | E71: 209.39 | F71: 192.44 | G71: 143.98 | H71: 141.28
A72: 注：
A73: 1.安全数据统计范围为紫金经营控制权下的生产型企业员工及承包商，单一员工或承包商的数据均会特殊注明
A74: 2.ISO45001:2018认证覆盖率是以2020年我们拥有的生产运营点为基准，截至报告期末获得认证的比例
A75: 3.百万工时损失工时率=因工伤损失工作时数÷总工时×1000000
A76: 4.百万工时损工事故率LTIR=损工事故人数÷总工时×1000000
A77: 5.百万工时可记录事故率TRIR=可记录事故伤害人数÷总工时×1000000
A78: 6.百万工时未遂事故率=未遂事故起数÷总工时×1000000
A80: 安全培训数据
A81: 指标 | B81: 人次 | C81: 培训时长(万小时) | D81: 达标率%
A82: 新入职工三级安全教育 | B82: 12,525 | C82: 52.87 | D82: 100.00
A83: 新入职承包商三级安全教育 | B83: 57,631 | C83: 197.04 | D83: 98.60
A84: 在岗人员再教育 | B84: 291,931 | C84: 106.07 | D84: 99.77
A85: 在岗承包商再教育 | B85: 193,431 | C85: 76.27 | D85: 99.41
A88: 产品管理数据
A89: 指标 | B89: 单位 | C89: 2024 | D89: 2023 | E89: 2022 | F89: 2021 | G89: 2020 | H89: 2019
A90: 矿产品合格率 | B90: % | C90: 99.996 | D90: 99.98 | E90: 100 | F90: 99.9 | G90: 99.8 | H90: 99.9
A91: 因安全与健康理由而召回的产品数量 | B91: 个 | C91: - | D91: - | E91: - | F91: - | G91: - | H91: -
A92: 因安全与健康理由而被投诉数量 | B92: 件 | C92: - | D92: - | E92: - | F92: - | G92: - | H92: -
A93: 客户满意度 | B93: % | C93: 100.00 | D93: 99.65 | E93: 99.60 | F93: 99.22 | G93: 99.29 | H93: 99.28
A94: 产品包装木材 | B94: 吨 | C94: 1,327 | D94: 479 | E94: 703 | F94: 699 | G94: 253 | H94: 206
A95: 产品精矿包装袋 | B95: 吨 | C95: 4,586 | D95: 2,887 | E95: 3,818 | F95: 1,841 | G95: 2,370 | H95: 2,725
A97: 科技创新数据
A98: 指标 | B98: 单位 | C98: 2024 | D98: 2023 | E98: 2022 | F98: 2021 | G98: 2020 | H98: 2019
A99: 研发投入 | B99: 亿元 | C99: 11.88 | D99: 9.69 | E99: 12.32 | F99: 7.71 | G99: 5.83 | H99: 5.39
A100: 新增专利数 | B100: 件 | C100: 17 | D100: 36 | E100: 29 | F100: 32 | G100: 24 | H100: 27
A102: 供应商数据
A103: 指标 | B103: 单位 | C103: 2024 | D103: 2023 | E103: 2022 | F103: 2021 | G103: 2020 | H103: 2019
A104: 供应商总数 | B104: 个 | C104: =C105+C106 -> 22,065 | D104: 6,712 | E104: 5,444 | F104: 5,380 | G104: 4,669 | H104: 4,923
A105: -来自中国的供应商 | B105: 个 | C105: 14,086 | D105: 4,304 | E105: 4,229 | F105: 4,480 | G105: 4,172 | H105: 4,495
A106: -来自中国以外其他国家和地区的供应商 | B106: 个 | C106: 7,979 | D106: 2,408 | E106: 1,215 | F106: 900 | G106: 497 | H106: 428
A107: 新供应商数量 | B107: 个 | C107: 1,822 | D107: 1,532 | E107: 1,547 | F107: 762 | G107: 917 | H107: 592
A108: -使用ESG标准筛选的新供应商数量 | B108: 个 | C108: 1,822 | D108: 1,532 | E108: 1,547 | F108: 762 | G108: 917 | H108: 592
A109: 本地化采购率 | B109: % | C109: 82.31 | D109: 80.33 | E109: 65.20 | F109: 31.82 | G109: / | H109: /
A111: 供应商管理
A112: 指标 | B112: 单位 | C112: 2024 | D112: 2023 | E112: 2022 | F112: 2021 | G112: 2020 | H112: 2019
A113: 采用环境和社会标准评估的供应商数量 | B113: 个 | C113: 5,456 | D113: 3,845 | E113: 2,327 | F113: 1,507 | G113: 1,384 | H113: /
A114: 经确定为具有实际和潜在重大负面 ESG 影响的供应商 | B114: 个 | C114: 215 | D114: 7 | E114: 3 | F114: 10 | G114: 0 | H114: /
A115: -同意进行整改的供应商 | B115: 个 | C115: 4 | D115: 2 | E115: 0 | F115: 2 | G115: 0 | H115: /
A116: -终止合作关系的供应商 | B116: 个 | C116: 211 | D116: 5 | E116: 3 | F116: 8 | G116: 0 | H116: /
A117: 黑名单供应商数量 | B117: 个 | C117: 211 | D117: 180 | E117: 177 | F117: 169 | G117: / | H117: /
A119: 社区投入数据
A120: 金额 | B120: 单位 | C120: 2024 | D120: 2023 | E120: 2022 | F120: 2021 | G120: 2020 | H120: 2019
A121: 社区总投入 | B121: 百万元 | C121: 811.96 | D121: 827.29 | E121: 454.74 | F121: 423.83 | G121: 231.93 | H121: 195.21
A122: -公益捐赠类 | B122: 百万元 | C122: 286.76 | D122: 297.32 | E122: 250.67 | F122: 268.24 | G122: 178.03 | H122: 166.28
A123: -非公益捐赠类 | B123: 百万元 | C123: 525.20 | D123: 529.97 | E123: 204.07 | F123: 155.59 | G123: 53.90 | H123: 28.93
A125: 经济贡献数据
A126: 指标 | B126: 单位 | C126: 2024 | D126: 2023 | E126: 2022 | F126: 2021 | G126: 2020 | H126: 2019
A127: 直接经济贡献 | B127: 亿元 | C127: =SUM(C128:C133) -> 3,186.10 | D127: 3,247.48 | E127: 2,853.94 | F127: 2,359.11 | G127: 1,800.15 | H127: 1,489.20
A128: -支付员工薪酬与福利 | B128: 亿元 | C128: 119.29 | D128: 98.35 | E128: 91.08 | F128: 71.51 | G128: 39.59 | H128: 37.65
A129: -支付供应商款项 | B129: 亿元 | C129: 2,724.76 | D129: 2,854.44 | E129: 2,511.41 | F129: 2,106.53 | G129: 1,635.57 | H129: 1,338.64
A130: -社区捐赠 | B130: 亿元 | C130: 2.87 | D130: 2.97 | E130: 2.51 | F130: 2.68 | G130: 1.66 | H130: 1.78
A131: -支付股东分红 | B131: 亿元 | C131: 105.66 | D131: 96.60 | E131: 81.15 | F131: 53.75 | G131: 35.07 | H131: 31.40
A132: -支付债权人利息 | B132: 亿元 | C132: 57.53 | D132: 57.46 | E132: 39.53 | F132: 24.04 | G132: 23.09 | H132: 20.48
A133: -支付政府款项(支付的税费) | B133: 亿元 | C133: 175.99 | D133: 137.66 | E133: 128.26 | F133: 100.60 | G133: 65.17 | H133: 59.25
A134: 社会贡献值 | B134: 亿元 | C134: 749.60 | D134: 561.83 | E134: 509.04 | F134: 394.83 | G134: 214.09 | H134: 169.78
A135: 每股社会贡献值 | B135: 元 | C135: 2.82 | D135: 2.13 | E135: 1.94 | F135: 1.53 | G135: 0.84 | H135: 0.73

Sheet 管治类
A1: =社会类!A1 -> 紫金矿业ESG数据绩效表（2024） | H1: =社会类!G1 -> 发布/更新时间:2025/3/21
A2: 管治类绩效表现
A4: 董事会组成
A5: 指标 | B5: 总数 | C5: 执行董事 | D5: 非执行董事 | E5: 独立董事 | F5: 女性董事
A6: 董事会人数 | B6: 13 | C6: 6 | D6: 1 | E6: 6 | F6: 2
A7: 占比 | B7: 100% | C7: 46.2% | D7: 7.7% | E7: 46.2% | F7: =F6/B6 -> 15.4%
A9: 商业道德数据
A10: 指标 | B10: 2024 | C10: 2023 | D10: 2022 | E10: 2021 | F10: 2020 | G10: 2019
A11: 商业道德培训覆盖率
A12: -董事、监事、高级管理人员 | B12: 100% | C12: 100% | D12: 100% | E12: 100% | F12: 87.19% | G12: 83.29%
A13: -员工 | B13: 75.25% | C13: 87.97% | D13: 75.50% | E13: 64.82% | F13: 63.96% | G13: 68.00%
A14: -供应商、承包商 | B14: 76.81% | C14: 73.77% | D14: 70.90% | E14: 62.10% | F14: 61.55% | G14: 58.24%
A15: 申诉举报数统计
A16: 总申诉举报数 | B16: 236 | C16: 243 | D16: 204 | E16: 154 | F16: 104 | G16: /
A17: 处理完成的申诉举报总数 | B17: 225 | C17: 227 | D17: 195 | E17: 145 | F17: / | G17: /
A18: 申诉举报来源
A19: -来自员工举报 | B19: 130 | C19: 121 | D19: 86 | E19: 63 | F19: 28 | G19: /
A20: -来自供应商、承包商举报 | B20: 58 | C20: 57 | D20: 63 | E20: 54 | F20: 33 | G20: /
A21: -其他利益相关方举报 | B21: 48 | C21: 65 | D21: 55 | E21: 37 | F21: 43 | G21: /
A22: 申诉举报类型
A23: -商业道德 | B23: 115 | C23: 112 | D23: 104 | E23: / | F23: / | G23: /
A24: -人事薪酬 | B24: 44 | C24: 67 | D24: 53 | E24: / | F24: / | G24: /
A25: -工作环境 | B25: 25 | C25: 34 | D25: 27 | E25: / | F25: / | G25: /
A26: -人权保障 | B26: 7 | C26: 26 | D26: 16 | E26: / | F26: / | G26: /
A27: -社区关系 | B27: 2 | C27: 4 | D27: 4 | E27: / | F27: / | G27: /
A28: -其他 | B28: 43 | C28: - | D28: - | E28: / | F28: / | G28: /

Sheet 经济类
A1: =管治类!A1 -> 紫金矿业ESG数据绩效表（2024） | G1: =管治类!H1 -> 发布/更新时间:2025/3/21
A2: 经济类绩效表现
A4: 经济类数据
A5: 指标 | B5: 单位 | C5: 2024 | D5: 2023 | E5: 2022 | F5: 2021 | G5: 2020 | H5: 2019
A6: 经营绩效
A7: 营业收入 | B7: 亿元 | C7: 3,036 | D7: 2,934 | E7: 2,703 | F7: 2,251 | G7: 1,715 | H7: 1,361
A8: 利润总额 | B8: 亿元 | C8: 481 | D8: 313 | E8: 300 | F8: 248 | G8: 108 | H8: 70
A9: 归母净利润 | B9: 亿元 | C9: 321 | D9: 211 | E9: 200 | F9: 157 | G9: 65 | H9: 43
A10: 期末总资产 | B10: 亿元 | C10: 3,966 | D10: 3,430 | E10: 3,060 | F10: 2,086 | G10: 1,823 | H10: 1,238
A11: 产品产量
A12: 矿产铜产量 | B12: 万吨 | C12: 107 | D12: 101 | E12: 88 | F12: 58 | G12: 45 | H12: 37
A13: 矿产金产量 | B13: 吨 | C13: 73 | D13: 68 | E13: 56 | F13: 48 | G13: 41 | H13: 41
A14: 矿产锌（铅）产量 | B14: 万吨 | C14: 45 | D14: 47 | E14: 44 | F14: 43 | G14: 38 | H14: 37
A15: 矿产银产量 | B15: 吨 | C15: 436 | D15: 412 | E15: 387 | F15: 309 | G15: 299 | H15: 263
A16: 资源量
A17: 铜资源量 | B17: 万吨 | C17: 11,037 | D17: 7,456 | E17: 7,372 | F17: 6,277 | G17: 6,206 | H17: 5,725
A18: 金资源量 | B18: 吨 | C18: 3,973 | D18: 2,998 | E18: 3,117 | F18: 2,373 | G18: 2,334 | H18: 1,887
A19: 锌（铅）资源量 | B19: 万吨 | C19: 1,298 | D19: 1,068 | E19: 1,118 | F19: 962 | G19: 1,033 | H19: 856
A20: 碳酸锂资源量 | B20: 万吨 | C20: 1,788 | D20: 1,347 | E20: 1,215 | F20: 763 | G20: / | H20: /

Sheet 附表-ISO 14001认证企业清单
A1: 紫金矿业ESG数据绩效表（2024）
A2: 附表-ISO14001环境体系认证企业清单
A3: # | B3: 企业名称 | C3: 企业类型 | D3: 通过认证 | E3: 认证证书编号 | F3: 生效日期 | G3: 有效期至
A4: 1 | B4: 紫金山金铜矿 | C4: 矿山 | D4: 是 | E4: 00219E30946R2L | F4: 2022-06-18 | G4: 2025-03-14
A5: 2 | B5: 元阳华西 | C5: 矿山 | D5: 是 | E5: 00224E35457R1M | F5: 2024-12-17 | G5: 2027-12-21
A6: 3 | B6: 新疆紫金锌业 | C6: 矿山 | D6: 是 | E6: 11424EnMS11564R1M | F6: 2024-11-12 | G6: 2027-11-10
A7: 4 | B7: 新疆金宝 | C7: 矿山 | D7: 是 | E7: 00221E34384R0M | F7: 2021-11-17 | G7: 2024-11-16
A8: 5 | B8: 武平紫金 | C8: 矿山 | D8: 是 | E8: 00222E31293R1M | F8: 2022-04-28 | G8: 2025-03-25
A9: 6 | B9: 乌后紫金 | C9: 矿山 | D9: 是 | E9: 00223E31609R2M | F9: 2023-05-12 | G9: 2026-05-12
A10: 7 | B10: 威斯特铜业 | C10: 矿山 | D10: 是 | E10: 03820E02255R0S | F10: 2021-08-09 | G10: 2024-08-08
A11: 8 | B11: 山西紫金 | C11: 矿山 | D11: 是 | E11: 00220E30415R2M | F11: 2022-12-13 | G11: 2026-03-22
A12: 9 | B12: 麻栗坡钨业 | C12: 矿山 | D12: 是 | E12: 00224E35292R1M | F12: 2024-12-09 | G12: 2027-12-22
A13: 10 | B13: 洛阳坤宇 | C13: 矿山 | D13: 是 | E13: 00222E34138R1M | F13: 2022-11-17 | G13: 2025-10-11
A14: 11 | B14: 洛宁华泰 | C14: 矿山 | D14: 是 | E14: 002222E34210R1M | F14: 2022-11-22 | G14: 2025-11-26
A15: 12 | B15: 陇南紫金 | C15: 矿山 | D15: 是 | E15: 00224E33484R1M | F15: 2024-08-19 | G15: 2027-08-30
A16: 13 | B16: 巨龙铜业 | C16: 矿山 | D16: 是 | E16: 052321ER1 | F16: 2024-08-07 | G16: 2024-07-01
A17: 14 | B17: 珲春紫金 | C17: 矿山 | D17: 是 | E17: 00220E33873R0M | F17: 2023-11-22 | G17: 2026-11-29
A18: 15 | B18: 贵州紫金 | C18: 矿山 | D18: 是 | E18: 00224E34146R1M | F18: 2024-09-27 | G18: 2027-12-15
A19: 16 | B19: 多宝山铜业 | C19: 矿山 | D19: 是 | E19: 00224E33984R1M | F19: 2024-09-20 | G19: 2027-09-07
A20: 17 | B20: 阿舍勒铜业 | C20: 矿山 | D20: 是 | E20: 00223E33252R2M | F20: 2023-08-18 | G20: 2026-08-06
A21: 18 | B21: 泽拉夫尚 | C21: 矿山 | D21: 是 | E21: A.CPT.CC-϶.102121.01-3859.04 | F21: 2021-10-27 | G21: 2024-10-26
A22: 19 | B22: 塞紫铜 | C22: 矿山 | D22: 是 | E22: RS001443 | F22: 2024-08-24 | G22: 2027-08-23
A23: 20 | B23: 穆索诺伊 | C23: 矿山 | D23: 是 | E23: 00224E34345R1M | F23: 2024-10-15 | G23: 2027-12-23
A24: 21 | B24: 龙兴 | C24: 矿山 | D24: 是 | E24: A.CPT.CC-϶.080824.01-3859.04 | F24: 2024-08-08 | G24: 2027-08-07
A25: 22 | B25: 大陆黄金 | C25: 矿山 | D25: 是 | E25: CO22.05218 | F25: 2022-01-30 | G25: 2025-01-29
A26: 23 | B26: 奥同克 | C26: 矿山 | D26: 是 | E26: А.СРТ.СС-Э.120324.01-3859.04 | F26: 2024-12-03 | G26: 2027-12-02
A27: 24 | B27: 奥罗拉 | C27: 矿山 | D27: 是 | E27: MS-AZ2159 | F27: 2022-12-12 | G27: 2025-12-11
A28: 25 | B28: 塞紫金 | C28: 矿山 | D28: 是 | E28: SL24836E | F28: 2022-09-09 | G28: 2025-09-08
A29: 26 | B29: 罗斯贝尔 | C29: 矿山 | D29: 是 | E29: CA05/3733 | F29: 2023-12-12 | G29: 2026-12-12
A30: 27 | B30: 紫金铜业 | C30: 冶炼与加工 | D30: 是 | E30: 00222E33624R2L | F30: 2022-10-11 | G30: 2025-09-29
A31: 28 | B31: 紫金银辉 | C31: 冶炼与加工 | D31: 是 | E31: 00224E33797R1S | F31: 2024-09-06 | G31: 2027-10-31
A32: 29 | B32: 药剂公司 | C32: 冶炼与加工 | D32: 是 | E32: 50020E0221R1M | F32: 2023-11-15 | G32: 2026-11-17
A33: 30 | B33: 洛宁紫金 | C33: 冶炼与加工 | D33: 是 | E33: 00224E33622R2M | F33: 2024-08-28 | G33: 2027-08-29
A34: 31 | B34: 金山耐磨 | C34: 冶炼与加工 | D34: 是 | E34: 04324E31433R0S | F34: 2024-07-16 | G34: 2027-07-15
A35: 32 | B35: 吉林紫金铜业 | C35: 冶炼与加工 | D35: 是 | E35: 00222E34337R2M | F35: 2022-11-30 | G35: 2025-12-08
A36: 33 | B36: 黄金冶炼公司 | C36: 冶炼与加工 | D36: 是 | E36: 00223E33976R4M | F36: 2023-10-09 | G36: 2026-10-14
A37: 34 | B37: 黑龙江紫金铜业 | C37: 冶炼与加工 | D37: 是 | E37: 00223E32900R1M | F37: 2023-07-27 | G37: 2026-08-27
A38: 35 | B38: 福建紫金铜业 | C38: 冶炼与加工 | D38: 是 | E38: 00220E0975R2M | F38: 2023-04-24 | G38: 2026-05-17
A39: 36 | B39: 福建贵金属材料公司 | C39: 冶炼与加工 | D39: 是 | E39: 50021E0167R1S | F39: 2024-09-05 | G39: 2027-09-08
A40: 37 | B40: 巴彦淖尔紫金 | C40: 冶炼与加工 | D40: 是 | E40: 00122E32967R5M/1500 | F40: 2022-09-01 | G40: 2025-08-11
A41: 38 | B41: 新疆紫金有色 | C41: 冶炼与加工 | D41: 是 | E41: 00224E34922R1M | F41: 2024-11-18 | G41: 2027-12-21
A42: 39 | B42: 海峡珠宝公司 | C42: 冶炼与加工 | D42: 是 | E42: 0070024E51763R1S | F42: 2024-07-10 | G42: 2027-07-09
A43: 40 | B43: 黄金珠宝 | C43: 冶炼与加工 | D43: 是 | E43: 0070024E51763R1S | F43: 2024-07-10 | G43: 2027-07-09
A44: 41 | B44: 紫金佳博 | C44: 冶炼与加工 | D44: 是 | E44: 07022E30002R1M | F44: 2022-01-10 | G44: 2025-01-10
A45: 42 | B45: 贵州紫金黄金冶炼公司 | C45: 冶炼与加工 | D45: 是 | E45: 00224E34144R1S | F45: 2024-09-27 | G45: 2027-10-13
A46: 43 | B46: 福建紫金锂元材料科技有限公司 | C46: 冶炼与加工 | D46: 是 | E46: 0070024E51247R0M | F46: 2024-05-23 | G46: 2027-05-22

Sheet 附表-ISO 45001认证企业清单
A1: 紫金矿业ESG数据绩效表（2024） | I1: =指引!L1 -> 发布/更新时间:2025/3/21
A2: 附表-ISO45001职业健康安全管理体系认证企业清单
A3: 目标：以2020年为基准，2024年所有现有生产运营点获得ISO45001:2018认证，新增生产运营点三年内通过认证
A4: # | B4: 企业名称 | C4: 企业类型 | D4: 是否通过认证 | E4: 认证证书编号 | F4: 生效日期 | G4: 有效期至 | H4: 是否计划于2025年内完成认证
A5: 1 | B5: 紫金山金铜矿 | C5: 矿山 | D5: 是 | E5: CQM22S21790R3L | F5: 2022-06-18 | G5: 2025-03-14
A6: 2 | B6: 元阳华西 | C6: 矿山 | D6: 是 | E6: 00224Q28028R1M | F6: 2024.12.17 | G6: 2027.12.21
A7: 3 | B7: 新疆紫金锌业 | C7: 矿山 | D7: 是 | E7: USA24S23967R0M | F7: 2024-11-12 | G7: 2027-11-10
A8: 4 | B8: 新疆金宝 | C8: 矿山 | D8: 是 | E8: CQM21S23891ROM | F8: 2021-11-17 | G8: 2024-11-16 | H8: 是，预计2025年11月完成
A9: 5 | B9: 武平紫金 | C9: 矿山 | D9: 是 | E9: CQM19S20692R2M | F9: 2022-04-28 | G9: 2025-04-18 | H9: 是
A10: 6 | B10: 乌后紫金 | C10: 矿山 | D10: 是 | E10: 00223E31609R2M | F10: 2023-05-12 | G10: 2026-05-16
A11: 7 | B11: 威斯特铜业 | C11: 矿山 | D11: 是 | E11: 03820O02254ROS | F11: 2021-08-09 | G11: 2024-08-08
A12: 8 | B12: 山西紫金 | C12: 矿山 | D12: 是 | E12: CQM22524172R3M | F12: 2022-12-13 | G12: 2026-03-22
A13: 9 | B13: 内蒙古金中 | C13: 矿山 | D13: 是 | E13: 079520S | F13: 2020-12-07 | G13: 2023-12-06
A14: 10 | B14: 麻栗坡钨业 | C14: 矿山 | D14: 是 | E14: CQM24S24845R1M | F14: 2024-12-09 | G14: 2027-12-22
A15: 11 | B15: 洛阳坤宇 | C15: 矿山 | D15: 是 | E15: CQM22S23801R1M | F15: 2022-11-17 | G15: 2025-10-11
A16: 12 | B16: 洛宁华泰 | C16: 矿山 | D16: 是 | E16: CQM22S23868R1M | F16: 2022-11-22 | G16: 2025-11-26 | H16: 是
A17: 13 | B17: 陇南紫金 | C17: 矿山 | D17: 是 | E17: CQM24S23191R1M | F17: 2024-08-19 | G17: 2027-08-30
A18: 14 | B18: 巨龙铜业 | C18: 矿山 | D18: 是 | E18: 052321SR1 | F18: 2024-08-07 | G18: 2027-07-01
A19: 15 | B19: 珲春紫金 | C19: 矿山 | D19: 是 | E19: CQM23S24341R1M | F19: 2023-11-22 | G19: 2026-11-29
A20: 16 | B20: 贵州紫金 | C20: 矿山 | D20: 是 | E20: CQM21S24349R0M | F20: 2024-01-10 | G20: 2027-01-09
A21: 17 | B21: 多宝山铜业 | C21: 矿山 | D21: 是 | E21: CQM21S23020RM | F21: 2024-09-20 | G21: 2027-09-07
A22: 18 | B22: 阿舍勒铜业 | C22: 矿山 | D22: 是 | E22: CQM23S23006R2M | F22: 2023-08-16 | G22: 2026-08-06
A23: 19 | B23: 泽拉夫尚 | C23: 矿山 | D23: 是 | E23: A.CPT.CC-З.102721.01-3859.04 | F23: 2021-10-27 | G23: 2024-10-26 | H23: 计划于2025年内完成认证
A24: 20 | B24: 塞紫铜 | C24: 矿山 | D24: 是 | E24: SL24275S | F24: 2024-09-15 | G24: 2027-09-14
A25: 21 | B25: 穆索诺伊 | C25: 矿山 | D25: 是 | E25: CQM24S23989R1M | F25: 2024-10-15 | G25: 2027-12-23
A26: 22 | B26: 龙兴 | C26: 矿山 | D26: 是 | E26: А.СРТ.СС-О.080824.01-3859.04 | F26: 2024-08-08 | G26: 2027-08-07
A27: 23 | B27: 大陆黄金 | C27: 矿山 | D27: 是 | E27: CO22.05219 | F27: 2022-01-30 | G27: 2025-01-29 | H27: 已通过换证审核，还未收到证书。
A28: 24 | B28: 奥同克 | C28: 矿山 | D28: 是 | E28: № А.СРТ.ЭА-О.120324.01/9(14)-3859.04 | F28: 2024-12-03 | G28: 2027-12-02
A29: 25 | B29: 奥罗拉 | C29: 矿山 | D29: 是 | E29: MS-AZ2159 | F29: 2022-12-12 | G29: 2025-12-11
A30: 26 | B30: 卢拉阿巴 | C30: 矿山 | D30: 是 | E30: TQC-22-12-6409 | F30: 2022-12-28 | G30: 2025-12-27
A31: 27 | B31: 塞紫金 | C31: 矿山 | D31: 是 | E31: SL24837S | F31: 2022-09-09 | G31: 2025-09-08
A32: 28 | B32: 诺顿金田 | C32: 矿山 | D32: 否 | E32: 已制定认证计划，2026年6月份完成 | F32: N/A | G32: N/A | H32: 否
A33: 29 | B33: 紫金银辉 | C33: 冶炼与加工 | D33: 是 | E33: 00224S23473R1S | F33: 2024-09-06 | G33: 2027-10-31
A34: 30 | B34: 紫金铜业 | C34: 冶炼与加工 | D34: 是 | E34: CQM22S23330R2L | F34: 2022-10-11 | G34: 2025-09-29 | H34: 是
A35: 31 | B35: 洛宁紫金 | C35: 冶炼与加工 | D35: 是 | E35: CQM21S23758R1M | F35: 2024-08-28 | G35: 2027-08-29
A36: 32 | B36: 金山耐磨 | C36: 冶炼与加工 | D36: 是 | E36: 04324S41339R0S | F36: 2024-07-16 | G36: 2027-07-15
A37: 33 | B37: 吉林紫金铜业 | C37: 冶炼与加工 | D37: 是 | E37: CQM19S23379RIM | F37: 2022-11-30 | G37: 2025-12-08
A38: 34 | B38: 黄金冶炼公司 | C38: 冶炼与加工 | D38: 是 | E38: 00223S23GG8R4M | F38: 2023-10-09 | G38: 2026-10-14
A39: 35 | B39: 黑龙江紫金铜业 | C39: 冶炼与加工 | D39: 是 | E39: CQM23S22696R1M | F39: 2023-07-27 | G39: 2026-08-27
A40: 36 | B40: 福建紫金铜业 | C40: 冶炼与加工 | D40: 是 | E40: 00200S20889R3M | F40: 2023-04-24 | G40: 2026-05-17 | H40: 是
A41: 37 | B41: 福建贵金属材料公司 | C41: 冶炼与加工 | D41: 是 | E41: 50021Q0246R1S | F41: 2021-09-09 | G41: 2027-09-08
A42: 38 | B42: 巴彦淖尔紫金 | C42: 冶炼与加工 | D42: 是 | E42: CQC22S32343R5M/1500 | F42: 2022-09-01 | G42: 2025-08-12 | H42: 是
A43: 39 | B43: 新疆紫金有色 | C43: 冶炼与加工 | D43: 是 | E43: 00224S24511R1M | F43: 2024-11-18 | G43: 2027-12-21
A44: 40 | B44: 福大紫金氢能 | C44: 新能源新材料 | D44: 是 | E44: 00223S21020R0M | F44: 2023-04-10 | G44: 2026-04-09
A45: 41 | B45: 新疆紫金黄金 | C45: 矿山 | D45: 否 | E45: 还未开展 | F45: N/A | G45: N/A
A46: 42 | B46: 紫金矿业建设有限公司 | C46: 建筑施工 | D46: 是 | E46: 03823S33130R4M | F46: 2023-04-18 | G46: 2026-06-09
A47: 43 | B47: 紫金锂元 | C47: 新能源新材料 | D47: 是 | E47: 0070022S52499ROM | F47: 2022-10-31 | G47: 2025-10-30
A48: 44 | B48: 西藏阿里拉果资源有限责任公司 | C48: 矿山 | D48: 否 | E48: 还未开展 | F48: N/A | G48: N/A
A49: 45 | B49: 贵州新恒基 | C49: 矿山 | D49: 否 | E49: 还未开展 | F49: N/A | G49: N/A
A50: 46 | B50: 湖南紫金锂业有限公司 | C50: 矿山 | D50: 否 | E50: 还未开展 | F50: N/A | G50: N/A
A51: 47 | B51: 西藏天圆矿业资源开发有限公司 | C51: 矿山 | D51: 否 | E51: 还未开展 | F51: N/A | G51: N/A
A52: 48 | B52: 西藏翔龙矿业有限公司 | C52: 矿山 | D52: 否 | E52: 还未开展 | F52: N/A | G52: N/A
A53: 49 | B53: 湖南紫金新材料公司 | C53: 新能源新材料 | D53: 否 | E53: 还未开展 | F53: N/A | G53: N/A | H53: 2022年成立，今年不算
A54: 50 | B54: 上杭紫金铁路公司 | C54: 铁路专用线运输 | D54: 是 | E54: OLS24S4649ROM | F54: 2024-10-29 | G54: 2027-10-28
A55: 51 | B55: 紫金黄金科技（海南）有限公司 | C55: 冶炼与加工 | D55: 是 | E55: 00224S21245ROM | F55: 2024-04-17 | G55: 2027-04-16
A56: 52 | B56: 紫金黄金珠宝有限公司 | C56: 冶炼与加工 | D56: 是 | E56: GB/T 45001-2020/ISO45001:2018 | F56: 2024-09-18 | G56: 2027-09-12
A57: 53 | B57: 厦门紫金矿冶技术有限公司 | C57: 技术类 | D57: 是 | E57: CN24/00003430 | F57: 2024-06-05 | G57: 2027-06-04
A58: 54 | B58: 福建紫金工程技术有限公司 | C58: 建设类 | D58: 是 | E58: 15817S8107R2M | F58: 2023-01-03 | G58: 2026-01-02
B62: 备注：2024年新增在产在建企业请增行填写。

Sheet 附表-尾矿库信息披露
A1: 紫金矿业ESG数据绩效表（2025） | I1: =指引!L1 -> 发布/更新时间:2025/3/21
A2: 附表-尾矿库信息披露
A3: 基本信息 | G3: 当前状态 | O3: 审查情况
A4: 序号 | B4: 企业/尾矿库名称 | C4: 尾矿库形式 | D4: 筑坝方式 | E4: 建设时间 | F4: 所在国家 | G4: 运行情况 | H4: 目前坝高(单位：米) | I4: 尾矿库是否依据被批准的设计进行运行或闭库 | J4: 是否有完整的相关工程记录，包括设计、施工、运行、维护和/或闭库 | K4: 是否有闭库计划以及闭库后长期监测计划 | L4: 是否已经或计划对尾矿库进行评估，以应对因气候变化导致的更经常发生的极端天气事件的影响 | M4: 潜在风险水平 | N4: 预期事故影响分级 | O4: 最近的安全审查时间 | P4: 最近的审查级别 | Q4: 是否针对尾矿坝可信破坏情景分析开展应急准备和计划 | R4: 审查结果简述 | S4: 风险缓释措施 | T4: 预期的下次的安全审查时间 | U4: 预期的下次的安全审查级别
A5: =ROW()-4 -> 1 | B5: 紫金山金铜矿大岽背尾矿库 | C5: 山谷型 | D5: 上游式 | F5: 中国 | G5: 已闭库 | I5: 是 | J5: 是 | K5: 是 | L5: 是
A6: =ROW()-4 -> 2 | B6: 紫金山金铜矿余田坑尾矿库 | C6: 山谷型 | D6: 上游式 | E6: 2021-11-09 | F6: 中国 | G6: 正在运行 | H6: 136.2 | I6: 是 | J6: 是 | K6: 是 | L6: 是 | M6: 低潜在风险 | N6: 低 | O6: 2023-12-01 | P6: 大坝安全审查（DSR） | Q6: 是 | R6: 第三方安全评价报告显示：余田坑尾矿库安全设施及坝体质量经过第三方监督和检测，安全设施有效，符合安全设施设计要求。具备安全生产的基本条件，可以正常生产。 | S6: 公司在库区安全、尾矿排放、尾矿坝、排洪系统、回水系统、安全监测、安全管理和应急管理等方面制定了专项管理方案，从多维度开展安全管理和风险缓释，降低尾矿库运营中的各类风险。 | T6: 2025-04-01 | U6: 大坝安全审查（DSR）
A7: 3 | B7: 西藏巨龙甲玛沟尾矿 | C7: 山谷型 | D7: 中线法 | E7: 2017-06-12 | F7: 中国 | G7: 正在运行 | H7: 110 | I7: 是 | J7: 是 | K7: 是 | L7: 是 | M7: 低潜在风险 | N7: 较高 | O7: 2024-04-01 | P7: 国家矿山安全监察局 | Q7: 是 | R7: 同意巨龙铜矿甲玛沟尾矿库工程安全设施重大变更设计通过审查 | S7: 严格按照安全设施设计进行施工生产作业 | T7: / | U7: 国家矿山安全监察局
A8: 4 | B8: 文山麻栗坡南温河钨矿西矿段岩脚尾矿库 | C8: 山谷型 | D8: 上游式 | E8: 2007-06-01 | F8: 中国 | G8: 正在运行 | H8: 97 | I8: 是 | J8: 是 | K8: 是 | L8: 是 | M8: 低潜在风险 | N8: 极高 | O8: 2023-06-01 | P8: 大坝安全审查（DSR） | Q8: 是 | R8: 第三方安全评价报告显示：岩脚尾矿库现状坝体无变形、开裂等病害，尾矿坝的轮廓尺寸符合设计要求，运行正常。西矿段岩脚尾矿库坝体在正常运行、洪水运行、特殊运行工况下经瑞典圆弧法计算的结果满足《尾矿库安全技术规程》的要求，坝体现状条件下抗滑稳定满足规范要求。岩脚尾矿库排水系统由库外排洪设施和库内排水设施组成，运行工况正常，经计算现状尾矿库排洪设施可满足设计条件下的排洪要求。 | S8: 公司在安全生产过程中采用强制排渗措施，严格控制浸润线的埋深。严格控制干滩长度和安全超高、尾矿坝上升速度和增加筑坝材料的压实度，做好强尾矿库施工管理，保证施工质量。 | T8: 2026-05-01 | U8: 大坝安全审查（DSR）
A9: 5 | B9: 陇南紫金菜子沟金矿尾矿库 | C9: 山谷型 | D9: 上游式 | E9: 2012-06-25 | F9: 中国 | G9: 正在运行 | H9: 80 | I9: 是 | J9: 是 | K9: 是 | L9: 是 | M9: 低潜在风险 | N9: 低 | O9: 2024-05-01 | P9: 大坝安全审查（DSR） | Q9: 是 | R9: 第三方安全评价报告显示：菜子沟尾矿库安全设施及坝体质量经过第三方监督和检测，安全设施有效，符合安全设施设计要求。具备安全生产的基本条件，可以正常生产，评价报告显示菜子沟尾矿库不存在重大生产安全事故隐患。 | S9: 公司按照汛期调洪演算报告的库水位等运行控制参数对该尾矿库进行管理。加强配备救援物资、器材和急救用品，提高应对突发事件的处理、应变能力和应急响应速度。加强尾矿库汛前、汛期运行管理。汛期前对排洪设施进行检查、维修和疏浚，确保排洪设施畅通。在每年汛前公司委托设计单位根据尾矿库实测地形图、水位和尾矿沉积滩面实际情況进行调洪演综，复核尾矿库防洪能力，确定汛期尾矿库的运行水位、干滩长度等安全运行控制参数。 | T9: 2027-04-01 | U9: 大坝安全审查（DSR）
A10: 6 | B10: 陇南紫金杜家沟金矿尾矿库 | C10: 山谷型 | D10: 上游式 | F10: 中国 | G10: 已闭库 | I10: 是 | J10: 是 | K10: 是 | L10: 是
A11: 7 | B11: 陇南紫金矿业有限公司张皮沟尾矿库 | C11: 山谷型 | D11: 一次性筑坝 | E11: 2024-07-01 | F11: 中国 | G11: 正在运行 | H11: 54 | I11: 是 | J11: 是 | K11: 是 | L11: 是 | M11: 低潜在风险 | N11: 低 | O11: 2024-11-01 | P11: 大坝安全审查（DSR） | Q11: 是 | R11: 第三方安全评价报告显示：张皮沟尾矿库安全设施及坝体质量经过第三方监督和检测，安全设施有效，符合安全设施设计要求。具备安全生产的基本条件，可以正常生产，评价报告显示张皮沟尾矿库不存在重大生产安全事故隐患。 | S11: 公司按照汛期调洪演算报告的库水位等运行控制参数对该尾矿库进行管理。加强配备救援物资、器材和急救用品，提高应对突发事件的处理、应变能力和应急响应速度。加强尾矿库汛前、汛期运行管理。汛期前对排洪设施进行检查、维修和疏浚，确保排洪设施畅通。在每年汛前公司委托设计单位根据尾矿库实测地形图、水位和尾矿沉积滩面实际情況进行调洪演综，复核尾矿库防洪能力，确定汛期尾矿库的运行水位、干滩长度等安全运行控制参数。 | T11: 2027-10-01 | U11: 大坝安全审查（DSR）
A12: 8 | B12: 乌拉特后旗紫金矿业有限公司三贵口尾矿库 | C12: 山谷型 | D12: 上游式 | E12: 2012-01-01 | F12: 中国 | G12: 正在运行 | H12: 70 | I12: 是 | J12: 是 | K12: 否 | L12: 是 | M12: 低潜在风险 | N12: 低 | O12: 2023-12-01 | P12: 大坝安全审查（DSR） | Q12: 是 | R12: 第三方安全评价报告显示：乌拉特后旗紫金矿业有限公司三贵口尾矿库的安全设施与已备案的《内蒙古乌拉特后旗紫金矿业有限公司三贵口尾矿库工程初步设计安全专篇》（内安监管一字〔2012〕359号）相符，不存在国家矿山安全监察局关于印发《金属非金属矿山重大事故隐患判定标准》的通知（矿安〔2022〕88号）中规定的尾矿库重大事故隐患，具备《中华人民共和国安全生产法》及有关法律、行政法规和国家标准、行业标准规定的安全生产条件。 | S12: 公司在生产管理过程中尽量降低库水位,确保尾矿库干滩长度大于设计要求,保证排水设施泄洪能力和库区调洪能力。采用坝上均匀分散放矿,保证尾矿库沉积滩坡度陡于设计要求,同时保证尾矿库水域部分水边线与堆积坝坝轴线基本平行,避免形成扇形坡,确保尾矿库生产过程中能够形成设计要求的调洪库容,以满足尾矿库的防洪需要。 。 | T12: 2026-12-01 | U12: 大坝安全审查（DSR）
A13: 9 | B13: 乌拉特后旗紫金矿业有限公司庙沟矿尾矿库 | C13: 山谷型 | D13: 上游式 | E13: 2012-06-01 | F13: 中国 | G13: 暂时停用 | H13: 30 | I13: 是 | J13: 否 | K13: 否 | L13: 是 | M13: 低潜在风险 | N13: 低 | O13: 2022-10-01 | P13: 大坝安全审查（DSR） | Q13: 是 | R13: 第三方安全评价报告显示：乌拉特后旗紫金矿业有限公司庙沟尾矿库的安全设施与已备案的《内蒙古乌拉特后旗紫金矿业有限公司庙沟铅锌矿老尾矿库治理工程初步设计安全专篇》（巴安监矿山发[2013] 19号）相符，不存在国家矿山安全监察局关于印发《金属非金属矿山重大事故隐患判定标准》的通知（矿安〔2022〕88号）中规定的尾矿库重大事故隐患，具备《中华人民共和国安全生产法》及有关法律、行政法规和国家标准、行业标准规定的安全生产条件。 | S13: 公司将不断加强安全管理和教育、完善各项安全制度、监理安全生产教育和培训档案、针对安全事故和重大险情制定应急救援预案、定期进行职业健康检查、对安全生产状况进行经常性检查、每年至少组织一次综合应急预案演练或者专项应急预案演练，每半年至少组织一次现场处置方案演练，加大安全生产投入的长效保障机制、强化巡坝人员的责任心、经常巡视库周围山体，发现异常情况及时处理。 | T13: 2025-08-01 | U13: 大坝安全审查（DSR）
A14: 10 | B14: 青海威斯特铜业有限责任公司德尔尼铜矿尾矿库 | C14: 山谷型 | D14: 上游式 | F14: 中国 | G14: 已停用 | I14: 是 | J14: 是 | K14: 是 | L14: 是
A15: 11 | B15: 武平紫金矿业有限公司悦洋尾矿库 | C15: 山谷型 | D15: 上游式 | E15: 2009-09-08 | F15: 中国 | G15: 正在运行 | H15: 56.5 | I15: 是 | J15: 是 | K15: 是 | L15: 是 | M15: 低潜在风险 | N15: 低 | O15: 2024-03-01 | P15: 大坝安全审查（DSR） | Q15: 是 | R15: 经过对武平紫金矿业有限公司悦洋尾矿库进行安全现状评价，评价组认为：悦洋尾矿库自取得安全生产许可证以来，尾矿库运行期间未发生安全生产事故，运行正常；尾矿库各系统（包括尾矿坝、防洪系统、排渗系统、监测系统、辅助设施、个体安全防护、安全标志及安全管理等）均符合法律法规、规程、规范及设计要求，运行正常，武平紫金矿业有限公司悦洋尾矿库具备安全生产条件；根据原国家安全生产监督管理总局 20 号令《非煤矿矿山安全生产许可证实施办法》的规定，悦洋尾矿库符合尾矿库安全生产条件的要求。 | S15: 公司在每年汛期来临之前，检查尾矿库调洪库容、干滩长度、坡比等是否和设计相符，同时对排洪系统应进行严格维修检查，防止出现排洪系统失效情况。按照严格的生产运行规程，放矿不能占用调洪库容，必须按照《尾矿库安全管理规定》进行管理，严格控制调洪水深、沉积滩长和安全超高。 | T15: 2027-03-01 | U15: 大坝安全审查（DSR）
A16: 12 | B16: 洛阳坤宇五龙金矿陈坡沟尾矿库 | C16: 山谷型 | D16: 上游式 | F16: 中国 | G16: 已闭库 | I16: 是 | J16: 是 | K16: 是 | L16: 是
A17: 13 | B17: 洛阳坤宇疼痛沟尾矿库 | C17: 山谷型 | D17: 上游式 | F17: 中国 | G17: 已闭库 | I17: 是 | J17: 是 | K17: 是 | L17: 是
A18: 14 | B18: 洛阳坤宇焦沟尾矿库 | C18: 山谷型 | D18: 上游式 | E18: 1990-05-06 | F18: 中国 | G18: 正在运行 | H18: 103.92 | I18: 是 | J18: 是 | K18: 是 | L18: 是 | M18: 低潜在风险 | N18: 较高 | O18: 2023-07-01 | P18: 大坝安全审查（DSR） | Q18: 是 | R18: 第三方安全评价报告显示：洛阳坤宇焦沟尾矿库的防洪能力和尾矿坝坝体稳定性符合设计及《尾矿库安全技术规程》规定要求，属于正常库。经现场勘察测量，该尾矿库的主坝、副坝的轮廓尺寸符合设计要求，各堆积坝坝体外形轮廓尺寸基本符合设计要求。现场检查时主坝初期坝、副坝、堆积坝坝体无明显沉陷、滑坡、裂缝、流土和管涌等不良现象，运行工况正常。 | S18: 公司将不断加强安全管理和教育、完善各项安全制度、监理安全生产教育和培训档案、针对安全事故和重大险情制定应急救援预案、定期进行职业健康检查、对安全生产状况进行经常性检查、每年至少组织一次综合应急预案演练或者专项应急预案演练，每半年至少组织一次现场处置方案演练，做好安全生产投入的长效保障机制、强化巡坝人员的责任心。加强尾矿坝的安全检查等安全管理，避免坝体出现裂缝、滑坡等安全隐患。 | T18: 2026-07-01 | U18: 大坝安全审查（DSR）
A19: 15 | B19: 洛阳坤宇牛头沟尾矿库 | C19: 山谷型 | D19: 上游式 | F19: 中国 | G19: 已闭库 | I19: 是 | J19: 是 | K19: 是 | L19: 是
A20: 16 | B20: 洛阳坤宇刺楞沟尾矿库 | C20: 山谷型 | D20: 上游式 | E20: 2020-04-05 | F20: 中国 | G20: 正在运行 | H20: 70.2 | I20: 是 | J20: 是 | K20: 是 | L20: 是 | M20: 低潜在风险 | N20: 较高 | O20: 2024-01-01 | P20: 大坝安全审查（DSR） | Q20: 是 | R20: 第三方安全评价报告显示：洛阳坤宇焦沟尾矿库的防洪能力和尾矿坝坝体稳定性符合设计及《尾矿库安全技术规程》规定要求，属于正常库。经现场勘察测量，该尾矿库的主坝、副坝的轮廓尺寸符合设计要求，各堆积坝坝体外形轮廓尺寸基本符合设计要求。现场检查时主坝初期坝、副坝、堆积坝坝体无明显沉陷、滑坡、裂缝、流土和管涌等不良现象，运行工况正常。 | S20: 公司将不断加强安全管理和教育、完善各项安全制度、监理安全生产教育和培训档案、针对安全事故和重大险情制定应急救援预案、定期进行职业健康检查、对安全生产状况进行经常性检查、每年至少组织一次综合应急预案演练或者专项应急预案演练，每半年至少组织一次现场处置方案演练，做好安全生产投入的长效保障机制、强化巡坝人员的责任心。加强尾矿坝的安全检查等安全管理，避免坝体出现裂缝、滑坡等安全隐患。 | T20: 2027-01-01 | U20: 大坝安全审查（DSR）
A21: 17 | B21: 黑龙江多宝山铜业股份有限公司多宝山铜矿尾矿库 | C21: 平地型 | D21: 一次性筑坝 | E21: 2011-06-30 | F21: 中国 | G21: 正在运行 | H21: 78 | I21: 是 | J21: 是 | K21: 是 | L21: 是 | M21: 低潜在风险 | N21: 低 | O21: 2024-11-01 | P21: 坝体稳定性分析 | Q21: 是 | R21: 第三方安全评价报告显示：未发现滑坡、坍塌、泥石流等地质灾害及不良地质现象，库址及周边环境单元满足规程规范要求。评价认为尾矿坝稳定，符合规程要求。排洪系统符合《安全设施设计》的要求。观测数据显示尾矿库运行处于正常状态，满足《安全设施设计》和《尾矿库安全规程》要求。由于本尾矿库利用采矿废石筑坝，尾矿坝本身即为巨大的排渗体，排渗及坝坡稳定性良好，在采用尾矿库现状物理力学指标进行计算及按设计要求运行的前提下，尾矿坝稳定性满足规范要求，可以保证尾矿库安全运行至545.0m标高。 | S21: 公司根据安全评价报告要求，加大了尾矿库安全生产投入，配备了专职安全管理人员，制定了主要的安全生产责任制 、安全生产管理制度和安全操作规程，制定应急预案并在应急管理局备案，定期组织年度演练。安全管理组织机构设置及安全管理制度，人员培训能满足安全生产要求。 | T21: 2026-11-01 | U21: 坝体稳定性分析
A22: 18 | B22: 元阳华西金子河北沟尾矿库（新） | C22: 山谷型 | D22: 上游式 | E22: 2011-02-26 | F22: 中国 | G22: 正在运行 | H22: 62 | I22: 是 | J22: 是 | K22: 是 | L22: 是 | M22: 低潜在风险 | N22: 低 | O22: 2023-04-25 | P22: 大坝安全审查（DSR） | Q22: 是 | R22: 第三方安全评价报告显示：金子河北沟尾矿库为正常库，符合设计要求以及安全生产，法律法规、标准、规范要求，具备继续生产运行的安全生产条件；运行期间加强巡查，发现隐患及时整改。 | S22: 公司将做到信息化及科学化管理，及时掌握尾矿库的地下水位变化动态情况，确保尾矿库的安全正常运行。 | T22: 2026-04-01 | U22: 大坝安全审查（DSR）
A23: 19 | B23: 珲春紫金曙光金铜矿9500t/d改扩建项目尾矿库（2#库） | C23: 山谷型 | D23: 上游式 | E23: 2007-04-07 | F23: 中国 | G23: 正在运行 | H23: 142.6 | I23: 是 | J23: 是 | K23: 是 | L23: 是 | M23: 低潜在风险 | N23: 高 | O23: 2023-09-01 | P23: 大坝安全审查（DSR） | Q23: 是 | R23: 第三方安全评价报告显示：经验算坝体稳定性，正常运行条件下，最小安全稳定系数为 Ks=1.819，大于三等库正常运行状态最小安全系数 1.20；特殊运行条件下，最小安全稳定系数为 Ks=1.679，大于三等库正常运行状态最小安全系数 1.05。按《尾矿设施设计规范》（GB 50863-2013）有关规定，坝体稳定，为尾矿库继续按设计要求进行堆积运行打下良好基础。 | S23: 公司将不断加强安全管理和教育、完善各项安全制度、监理安全生产教育和培训档案、针对安全事故和重大险情制定应急救援预案、定期进行职业健康检查、对安全生产状况进行经常性检查、每年至少组织一次综合应急预案演练或者专项应急预案演练，每半年至少组织一次现场处置方案演练，做好安全生产投入的长效保障机制、强化巡坝人员的责任心。加强尾矿坝的安全检查等安全管理，避免坝体出现裂缝、滑坡等安全隐患。 | T23: 2026-09-01 | U23: 大坝安全审查（DSR）
A24: 20 | B24: 珲春紫金曙光金铜矿废石综合利用项目尾矿库（3#库） | C24: 山谷型 | D24: 上游式 | E24: 2013-05-01 | F24: 中国 | G24: 正在运行 | H24: 87 | I24: 是 | J24: 是 | K24: 是 | L24: 是 | M24: 低潜在风险 | N24: 高 | O24: 2024-11-01 | P24: 大坝安全审查（DSR） | Q24: 是 | R24: 第三方安全评价报告显示：该尾矿库运行与生产技术、工艺和装置、设备设施安全、可靠性和安全水平相适应，符合国家有关安全生产的法律法规、标准、规章、规范。珲春紫金矿业有限公司曙光金铜矿废石综合利用项目尾矿库满足《非煤矿矿山企业安全生产许可证实施办法》相关条款的规定，具备安全生产运行条件。 | S24: 公司将不断加强安全管理和教育、完善各项安全制度、监理安全生产教育和培训档案、针对安全事故和重大险情制定应急救援预案、定期进行职业健康检查、对安全生产状况进行经常性检查、每年至少组织一次综合应急预案演练或者专项应急预案演练，每半年至少组织一次现场处置方案演练，做好安全生产投入的长效保障机制、强化巡坝人员的责任心。加强尾矿坝的安全检查等安全管理，避免坝体出现裂缝、滑坡等安全隐患。 | T24: 2027-11-01 | U24: 大坝安全审查（DSR）
A25: 21 | B25: 山西紫金金鸡岭尾矿库 | C25: 山谷型 | D25: 上游式 | E25: 2009-03-03 | F25: 中国 | G25: 正在运行 | H25: 77 | I25: 是 | J25: 是 | K25: 是 | L25: 是 | M25: 低潜在风险 | N25: 低 | O25: 2021-11-01 | P25: 大坝安全审查（DSR） | Q25: 是 | R25: 第三方安全评价报告显示：⑴尾矿坝的轮廓尺寸符合（满足）设计要求，稳定安全系数满足规程要求，坝坡稳定；⑵排洪系统符合设计要求，排洪设施完好，排洪能力满足设计要求，工况正常；⑶尾矿库的生产运行对周边环境不产生明显影响，周边环境对尾矿库的运行影响较小。⑷尾矿库安全监测设施完好，运行正常，满足设计要求。⑸尾矿库下个评价周期间坝体稳定安全系数满足设计要求，排洪能力满足设计要求。山西紫金矿业有限公司（金鸡岭尾矿库）安全设施及安全管理符合《尾矿库安全规程》、《尾矿库安全监督管理规定》、《非煤矿矿山企业安全生产许可证实施办法》及初步设计(安全专篇)等要求，设施完好、有效，尾矿库为正常库，具备安全生产条件。 | S25: 公司为了确保本尾矿库安全运行，防患于未然，在今后的工作中加强安全生产管理，落实国家、省关于尾矿库管理的各项法律、法规、规范、标准以及本评价报告所提出的安全建议措施，保持尾矿库各项安全设施有效运行，保证尾矿库的安全。 | T25: 2023-04-01 | U25: 大坝安全审查（DSR）
A26: 22 | B26: 山西紫金车首花沟尾矿库 | C26: 山谷型 | D26: 上游式 | F26: 中国 | G26: 已闭库 | I26: 是 | J26: 是 | K26: 是 | L26: 是
A27: 23 | B27: 山西繁峙县义联金矿尾矿库 | C27: 山谷型 | D27: 上游式 | F27: 中国 | G27: 已闭库 | I27: 是 | J27: 是 | K27: 是 | L27: 是
A28: 24 | B28: 山西紫金柳泉沟尾矿库 | C28: 山谷型 | D28: 上游式 | E28: 2021-02-01 | F28: 中国 | G28: 正在运行 | H28: 68 | I28: 是 | J28: 是 | K28: 是 | L28: 是 | M28: 低潜在风险 | N28: 低 | O28: 2024-06-01 | P28: 坝体稳定性分析 | Q28: 是 | R28: 第三方安全评估报告显示：通过对山西紫金矿业有限公司柳泉沟尾矿库安全管理及运行现状的检查，尾矿库的证照、资料齐全，企业组织机构健全，制度完善，安全投入到位，职业安全得到落实，主要安全设施符合设计要求。尾矿库为正常库。 | S28: 公司从库区安全、尾矿排放、尾矿坝、排洪系统、回水系统、安全监测、安全管理和应急管理等方面落法律法规、规范、标准以及评估报告所提出的安全建议措施，确保尾矿库安全运行。 | T28: 2027-06-01 | U28: 坝体稳定性分析
A29: 25 | B29: 洛宁华泰大池沟尾矿库 | C29: 山谷型 | D29: 上游式 | E29: 2014-09-24 | F29: 中国 | G29: 正在运行 | H29: 47.7 | I29: 是 | J29: 是 | K29: 否 | L29: 是 | M29: 低潜在风险 | N29: 低 | O29: 2024-01-06 | P29: 大坝安全审查（DSR） | Q29: 是 | R29: 第三方安全评价报告显示：洛宁华泰矿业开发有限公司大池沟尾矿库总布置及周边环境、尾矿坝、防排洪系统、排渗系统、安全检测设施、库内浮桥、辅助设施、个人安全防护、安全标志、安全管理、双重预防体系信息化建设等均符合国家法律、法规及设计要求，目前运行正常。该尾矿库自2021年1月7日取得安全生产许可证以来，未发生安全生产事故；尾矿坝现状稳定性能满足设计要求；尾矿库现状防洪能力能满足设计要求；尾矿库现状安全监测设施能满足设计要求；尾矿库在落实设计及安全现状评价报告提出的安全对策措施后，尾矿库风险及对周边环境的影响控制在可接受范围内；尾矿库在下个评价周期间严格按设计要求运行和管理，坝体稳定性和防洪能力能满足设计要求；尾矿库 具备继续生产运行的安全生产条件。 | S29: 公司将不断加强安全管理和教育、完善各项安全制度、监理安全生产教育和培训档案、针对安全事故和重大险情制定应急救援预案、定期进行职业健康检查、对安全生产状况进行经常性检查、每年至少组织一次综合应急预案演练或者专项应急预案演练，每半年至少组织一次现场处置方案演练，做好安全生产投入的长效保障机制、强化巡坝人员的责任心。加强尾矿坝的安全检查等安全管理，避免坝体出现裂缝、滑坡等安全隐患。 | T29: 2027-01-06 | U29: 大坝安全审查（DSR）
A30: 26 | B30: 洛宁华泰北赵沟尾矿库 | C30: 山谷型 | D30: 上游式 | F30: 中国 | G30: 已闭库 | I30: 是 | J30: 是 | K30: 是 | L30: 是
A31: 27 | B31: 洛宁华泰陆院沟尾矿库 | C31: 山谷型 | D31: 上游式 | F31: 中国 | G31: 已闭库 | I31: 是 | J31: 是 | K31: 是 | L31: 是
A32: 28 | B32: 阿舍勒铜矿尾矿库（新） | C32: 山谷型 | D32: 上游式 | E32: 2015-05-01 | F32: 中国 | G32: 正在运行 | H32: 31 | I32: 是（运行） | J32: 是 | K32: 是 | L32: 是 | M32: 低潜在风险 | N32: 低 | O32: 2024-05-23 | P32: 大坝安全审查（DSR） | Q32: 是 | R32: 第三方安全评价报告显示：该尾矿库为正常库，符合设计要求以及安全生产，法律法规、标准、规范要求，具备继续生产运行的安全生产条件。 | S32: 公司将不断加强安全管理和教育、完善各项安全制度、监理安全生产教育和培训档案、针对安全事故和重大险情制定应急救援预案、定期进行职业健康检查、对安全生产状况进行经常性检查、每年至少组织一次综合应急预案演练或者专项应急预案演练，每半年至少组织一次现场处置方案演练，做好安全生产投入的长效保障机制、强化巡坝人员的责任心。加强尾矿坝的安全检查等安全管理，避免坝体出现裂缝、滑坡等安全隐患。并安排专人定期检查清理左右坝肩排水沟、坝前及坝面排水沟，确保排水沟排水顺畅。 | T32: 2027-05-01 | U32: 大坝安全审查（DSR）
A33: 29 | B33: 阿舍勒铜矿尾矿库（老） | C33: 山谷型 | D33: 上游式 | F33: 中国 | G33: 已停用 | I33: 是（闭库） | J33: 是 | K33: 是 | L33: 是
A34: 30 | B34: 新疆金宝蒙库铁矿选厂尾矿库(原库加高增容) | C34: 山谷型 | D34: 上游式 | E34: 2004-04-03 | F34: 中国 | G34: 正在运行 | H34: 93 | I34: 是 | J34: 是 | K34: 是 | L34: 是 | M34: 低潜在风险 | N34: 低 | O34: 2022-06-01 | P34: 大坝安全审查（DSR） | Q34: 是 | R34: 第三方安全评价报告显示：尾矿库工程建设以及各项附属设施符合国家相关安全生产法律法规、规章、标准、规范要求，具备安全生产的基本条件，可以正常生产。 | S34: 公司在库区安全、尾矿排放、尾矿坝、排洪系统、回水系统、安全监测、安全管理和应急管理等方面制定了专项管理方案，从多维度降低尾矿库运营中的各类风险。 | T34: 2025-05-01 | U34: 大坝安全审查（DSR）
A35: 31 | B35: 富蕴金山蒙库铁矿床东矿段铁矿尾矿库 | C35: 山谷型 | D35: 上游式 | F35: 中国 | G35: 已闭库 | I35: 是 | J35: 是 | K35: 是 | L35: 是
A36: 32 | B36: 紫金锌业乌拉根铅锌矿尾矿库 | C36: 山谷型 | D36: 上游式 | F36: 中国 | G36: 已停用 | I36: 是 | J36: 是 | K36: 是 | L36: 是
A37: 33 | B37: 紫金锌业乌拉根铅锌矿尾矿库（三期） | C37: 山谷型 | D37: 中线式 | E37: 2020-03-28 | F37: 中国 | G37: 正在运行 | H37: 54 | I37: 是 | J37: 是 | K37: 是 | L37: 是 | M37: 低潜在风险 | N37: 低 | O37: 2024-07-01 | P37: 大坝安全审查（DSR） | Q37: 是 | R37: 第三方安全评价报告显示：紫金锌业尾矿库在不同运行期及各种运行工况安全系数均满足规范要求，坝体安全可靠。 | S37: 在尾矿库运行过程，加强尾矿库的堆坝管理，如子坝外坡坡比、 马道宽度等要和设计图纸保持一致，对不符合设计要求的工程措施应 及时整改到位。随着尾矿堆积标高上升，尾矿库后续位移、浸润线及 其它监测设置要及时实施并做好监测记录；每次地震过后，要对尾矿库排洪系统进行检查以及质量检测，如有损毁需及时修复；尾矿库在生产管理过程中如出现可能影响尾矿库安全的情况，现场管理人员应及时向上级主管部门反映，主管部门要尽快与设计单位取得联系，以便及时妥善处理，保证尾矿库安全，避免生命和财产损失。 | T37: 2025-07-01 | U37: 安全现状评价
A38: 34 | B38: 内蒙古金中矿业有限公司巴彦哈尔金矿尾矿库 | C38: 平地型 | D38: 一次性筑坝 | F38: 中国 | G38: 已闭库 | I38: 是 | J38: 是 | K38: 是 | L38: 是
A39: 35 | B39: 贵州紫金小厂尾矿库 | C39: 山谷型 | D39: 一次性筑坝 | E39: 2009-04-01 | F39: 中国 | G39: 正在运行 | H39: 54 | I39: 是 | J39: 是 | K39: 否 | L39: 是 | M39: 低潜在风险 | N39: 低 | O39: 2024-12-01 | P39: 大坝安全审查（DSR） | Q39: 是 | R39: 第三方安全评价报告显示：贵州紫金矿业股份有限公司水银洞金矿小厂尾矿库属四等正常库,现状条件下的生产系统、辅助系统和安全保障系统能够满足国家现行的相关法律、法规、技术标准和规范的规定，具备继续生产运行的安全生产条件。 | S39: 公司加强坝体位移和沉降观测和分析，发现异常会及时采取处理措施。对排水设施需定期巡查，如有损坏、淤塞需及时处理，雨季前对排洪设施进行一次全面检查以备渡汛。运行中应用浸润线观测数据分析排渗效果，后续尾矿库排放中严格按设计要求建设防渗设施。 | T39: 2027-12-01 | U39: 大坝安全审查（DSR）
A40: 36 | B40: 贵州紫金大烂滩尾矿库 | C40: 山谷型 | D40: 上游式 | F40: 中国 | G40: 已闭库 | I40: 是 | J40: 是 | K40: 是 | L40: 是
A41: 37 | B41: 贵州紫金小烂滩尾矿库 | C41: 山谷型 | D41: 上游式 | F41: 中国 | G41: 已闭库 | I41: 是 | J41: 是 | K41: 是 | L41: 是
A42: 38 | B42: 四川平武中金矿业有限公司银厂金矿干式尾矿库 | C42: 平地型 | D42: 上游式 | F42: 中国 | G42: 已闭库 | I42: 是 | J42: 是 | K42: 是 | L42: 是
A43: 39 | B43: 香格里拉市华西矿业郎都铜矿尾矿库 | C43: 山谷型 | D43: 上游式 | F43: 中国 | G43: 已停用 | I43: 是 | J43: 是 | K43: 是 | L43: 是
A44: 40 | B44: 安康市金峰矿业有限公司小河金矿留家沟尾矿库 | C44: 山谷型 | D44: 上游式 | F44: 中国 | G44: 已停用 | I44: 是 | J44: 是 | K44: 是 | L44: 是
A45: 41 | B45: 塞尔维亚紫金铜业VK矿0#尾矿库 | C45: 截河型 | D45: 下游式 | E45: 2020-08-31 | F45: 塞尔维亚 | G45: 正在运行 | H45: 76 | I45: 是 | J45: 是 | K45: 是 | L45: 是 | M45: 低潜在风险 | N45: 低 | O45: 2024-12-01 | P45: 大坝安全审查（DSR） | Q45: 是 | R45: 第三方安全评价报告显示：尾矿库运行符合设计要求，风险可控 | S45: 公司将合理排放尾矿浆，控制浸润线、保证干摊长度，保持合理的水位，保证泵站抽排水系统正常运转，及时修复因降雨导致的坝体渗流破坏；2024年7月份新排洪硐已启用；2024年12月18日VK2#尾矿库底部老排洪硐（下游段）封堵全面完成，尾矿库风险已彻底消除。 | T45: 2025-03-01 | U45: 大坝安全审查（DSR）
A46: 42 | B46: 塞尔维亚紫金铜业VK矿1#尾矿库 | C46: 截河型 | D46: 下游式 | F46: 塞尔维亚 | G46: 已闭库 | I46: 是 | J46: 是 | K46: 是 | L46: 是
A47: 43 | B47: 塞尔维亚紫金铜业VK矿2#尾矿库 | C47: 截河型 | D47: 下游式 | F47: 塞尔维亚 | G47: 已闭库 | I47: 是 | J47: 是 | K47: 是 | L47: 是
A48: 44 | B48: 塞尔维亚紫金铜业JM矿2#尾矿库 | C48: 傍山型 | D48: 上游式 | E48: 1984-06-15 | F48: 塞尔维亚 | G48: 正在运行 | H48: 35 | I48: 是 | J48: 是 | K48: 是 | L48: 是 | M48: 低潜在风险 | N48: 低 | O48: 2024-12-01 | P48: 大坝安全审查（DSR） | Q48: 是 | R48: 第三方安全评价报告显示：尾矿库运行符合设计要求，风险可控 | S48: 公司将合理排放尾矿浆，控制浸润线、保证干摊长度，保证泵站抽排水系统正常运转，及时修复因降雨导致的坝体渗流破坏。目前正在按设计实施机械加高一次性废石筑坝，筑坝高度5m，达到设计标高390m | T48: 2025-03-01 | U48: 大坝安全审查（DSR）
A49: 45 | B49: 塞尔维亚紫金铜业MS矿1#尾矿库 | C49: 傍山型 | D49: 上游式 | E49: 1960-01-31 | F49: 塞尔维亚 | G49: 正在运行 | H49: 60 | I49: 是 | J49: 是 | K49: 是 | L49: 是 | M49: 低潜在风险 | N49: 低 | O49: 2024-12-01 | P49: 大坝安全审查（DSR） | Q49: 是 | R49: 第三方安全评价报告显示：尾矿库运行符合设计要求，风险可控 | S49: 公司将合理排放尾矿浆，控制浸润线、保证干摊长度，保证泵站抽排水系统正常运转，及时修复因降雨导致的坝体渗流破坏 | T49: 2025-03-01 | U49: 大坝安全审查（DSR）
A50: 46 | B50: 塞尔维亚紫金矿业浮选尾矿库 | C50: 山谷型 | D50: 一次性筑坝 | E50: 2021-05-01 | F50: 塞尔维亚 | G50: 正在运行 | H50: 59 | I50: 是 | J50: 是 | K50: 是 | L50: 是 | M50: 低潜在风险 | N50: 低 | O50: 2024-12-01 | P50: 内部审查 | Q50: 是 | R50: 内部审查结果为：排渗设施、位移、浸润线等均符合运行要求，风险可控，无溃坝风险，尾矿库运行符合设计要求。 | S50: 公司将做好尾矿库坝体位移及浸润线的定期监测，尾矿库需要预留足够的调节水位，建立溃坝预警系统，在坝体受到威胁的情况下能够及时通知到下游，做好应急响应。 | T50: 2025-12-01 | U50: 内部审查
A51: 47 | B51: 塞尔维亚紫金矿业硫精矿库 | C51: 山谷型 | D51: 一次性筑坝 | E51: 2021-05-01 | F51: 塞尔维亚 | G51: 正在运行 | H51: 43.5 | I51: 是 | J51: 是 | K51: 是 | L51: 是 | M51: 低潜在风险 | N51: 低 | O51: 2024-12-01 | P51: 内部审查 | Q51: 是 | R51: 内部审查结果为：排渗设施、位移、浸润线等均符合运行要求，风险可控，无溃坝风险，尾矿库运行符合设计要求。 | S51: 公司将做好尾矿库坝体位移及浸润线的定期监测，尾矿库需要预留足够的调节水位，建立溃坝预警系统，在坝体受到威胁的情况下能够及时通知到下游，做好应急响应。 | T51: 2025-12-02 | U51: 内部审查
A52: 48 | B52: 刚果（金）穆索诺伊KOLWEZI铜矿项目尾矿库 | C52: 平地型 | D52: 上游式 | E52: 2016-05-05 | F52: 刚果（金） | G52: 正在运行 | H52: 30.5 | I52: 是 | J52: 是 | K52: 是 | L52: 是 | M52: 低潜在风险 | N52: 低 | O52: 2024-09-15 | P52: 外部审查 | Q52: 是 | R52: 内部审查结果为：尾矿库排渗设施、位移、浸润线、库容、干滩等设施均正常。 | S52: 对箱涵定期进行检测对比，持续监测尾矿库的浸润线、位移等重点安全数据，做好各应急池PH及重金属离子检测及调节，并对环库沟内的淤泥定期进行清理保障排水顺畅。 | T52: 2025-09-01 | U52: 外部审查
A53: 49 | B53: 刚果（金）穆索诺伊KOLWEZI铜矿项目尾矿库 | C53: 平地型 | D53: 上游式 | E53: 2022-04-13 | F53: 刚果（金） | G53: 正在运行 | H53: 14 | I53: 是 | J53: 是 | K53: 是 | L53: 是 | M53: 低潜在风险 | N53: 低 | O53: 2024-09-15 | P53: 外部审查 | Q53: 是 | R53: 内部审查结果为：尾矿库排渗设施、位移、浸润线、库容、干滩等设施均正常。 | S53: 对箱涵定期进行检测对比，持续监测尾矿库的浸润线、位移等重点安全数据，做好各应急池PH及重金属离子检测及调节，并对环库沟内的淤泥定期进行清理保障排水顺畅。 | T53: 2025-09-01 | U53: 外部审查
A54: 50 | B54: 吉尔吉斯斯坦奥同克左岸金矿浮选尾矿库 | C54: 山谷型 | D54: 一次性筑坝 | E54: 2014-04-28 | F54: 吉尔吉斯斯坦 | G54: 正在运行 | H54: 78.7 | I54: 是 | J54: 是 | K54: 是 | L54: 是 | M54: 低潜在风险 | N54: 低 | O54: 2024-12-01 | P54: 内部审查 | Q54: 是 | R54: 内部审查结果为：坝体稳定，周边边坡已全封闭处理，在线监测正常运行，汇水面积小，截水沟通畅 | S54: 尾矿坝2024年重新安装了实时在线监测系统，公司确保监测系统正常运行，并由专人定期巡坝，规范放矿，保持截水沟排水通畅。 | T54: 2025-12-01 | U54: 内部审查
A55: 51 | B55: 吉尔吉斯斯坦奥同克左岸金矿尾矿库（氰化尾矿库） | C55: 山谷型 | D55: 一次性筑坝 | E55: 2013-04-10 | F55: 吉尔吉斯斯坦 | G55: 正在运行 | H55: 45 | I55: 是 | J55: 是 | K55: 是 | L55: 是 | M55: 低潜在风险 | N55: 低 | O55: 2024-12-01 | P55: 内部审查 | Q55: 是 | R55: 内部审查结果为：坝体稳定，周边边坡全封闭处理，汇水面积小，运行稳定。 | S55: 尾矿坝2024年重新安装了实时在线监测系统，公司确保监测系统正常运行，并由专人定期巡坝，规范放矿，保持截水沟排水通畅。 | T55: 2025-12-01 | U55: 内部审查
A56: 52 | B56: 俄罗斯龙兴克孜尔-塔什特克选矿厂尾矿库 | C56: 山谷型 | D56: 一次性筑坝 | E56: 2013-05-10 | F56: 俄罗斯 | G56: 正在运行 | H56: 49 | I56: 是 | J56: 是 | K56: 是 | L56: 是 | M56: 低潜在风险 | N56: 低 | O56: 2024-03-01 | P56: 年度绩效审查 | Q56: 是 | R56: 年度绩效审查结果表明：水利设施运行平稳，符合水利设施持续运行条件。 | S56: 矿山运营期间尾矿库区域的环保破坏，采取了以下措施： 对泥浆管道和回水管道的运行进行全面控制，及时更换磨损管段；定期检查和维修排水设施，防止因维护尾矿设施损坏而造成的矿浆污染。将发生溃坝事故的风险降至最低。 | T56: 2025-03-01 | U56: 年度绩效审查
A57: 53 | B57: ZRV公司塔罗1#、2#合并尾矿库（塔吉克斯坦-中塔泽拉夫尚） | C57: 山谷型 | D57: 中线式 | F57: 塔吉克斯坦 | G57: 已停用 | I57: 是 | J57: 是 | K57: 是 | L57: 是
A58: 54 | B58: ZRV公司塔罗吉劳尾矿库（塔吉克斯坦-中塔泽拉夫尚） | C58: 山谷型 | D58: 上游式 | E58: 2002-01-01 | F58: 塔吉克斯坦 | G58: 正在运行 | H58: 91.5 | I58: 是 | J58: 是 | K58: 是 | L58: 是 | M58: 低潜在风险 | N58: 低 | O58: 2021-12-01 | P58: 独立尾矿评审委员会(ITRB)或高级技术审查人员 | Q58: 是 | R58: 评审专家一致认为：尾矿库安全超高和最小干滩长度满足设计规定的要求；排水系统各构筑物符合设计要求，工况正常；尾矿坝的轮廓尺寸符合设计要求，稳定安全系数满足设计要求；尾矿库坝体渗流控制满足要求，工况正常。 | S58: 公司从库区安全、尾矿排放、尾矿坝、库区周边排洪系统、回水系统、安全监测、安全管理和应急管理等方面落实塔吉克国家相关法律法规要求和公司尾矿库安全运行管理制度。后续管理中：1）控制堆积坝上升速率；2）正常运行水位控制在100米干滩长度；3）注重排洪系统的巡查和维修；4）做好冬季放矿管理；5）闭库前的安全评价；6）按最小浸润线埋深控制；7）在线监测系统的运用。 | T58: 2024-12-01 | U58: 独立尾矿评审委员会(ITRB)或高级技术审查人员
A59: 55 | B59: ZRV公司塔罗氧化矿在建3#尾矿库（塔吉克斯坦-中塔泽拉夫尚） | C59: 山谷型 | D59: 上游式 | E59: 2021-10-01 | F59: 塔吉克斯坦 | G59: 正在运行 | H59: 58 | I59: 是 | J59: 是 | K59: 是 | L59: 是 | M59: 低潜在风险 | N59: 低 | O59: 2021-12-01 | P59: 独立尾矿评审委员会(ITRB)或高级技术审查人员 | Q59: 是 | R59: 评审专家一致认为：尾矿库排水系统各构筑物建设符合设计要求，在建尾矿坝的轮廓尺寸符合设计要求，稳定安全系数满足设计要求。尾矿库原设计库底设有防渗层，坝体加高部分设低渗透材料，形成了整体防渗层。坝体历经数次加高扩容并未影响周边环境的自然水系。 | S59: 公司从库区安全、尾矿排放、尾矿坝、库区周边排洪系统、回水系统、安全监测、安全管理和应急管理等方面落实塔吉克国家相关法律法规要求和公司尾矿库安全运行管理制度。后续管理中：1）做好初期坝运行管理；2）正常运行水位控制在100米干滩长度；3）注重排洪系统的巡查和维修；4）做好冬季放矿管理；5）闭库前的安全评价；6）按最小浸润线埋深控制；7）在线监测系统的运用。 | T59: 2024-12-01 | U59: 独立尾矿评审委员会(ITRB)或高级技术审查人员
A60: 56 | B60: 大陆黄金Buritica尾矿库1#库 | C60: 山谷型 | D60: 干式堆存 | E60: 2018-09-01 | F60: 哥伦比亚 | G60: 运行+在建（分期建设） | H60: 12~14（分期建设） | I60: 是 | J60: 是 | K60: 是 | L60: 是 | M60: 低潜在风险 | N60: 高 | O60: 2024-04-01 | P60: EOR审查 | Q60: 是 | R60: EOR审查认为：尾矿库目前整体安全性良好，事故风险较低、整体风险可控。 | S60: 尾矿库最底部设置两层PE膜隔离防渗，PE膜沿库底延伸至地面挖沟覆压；PE膜上部设置积水及排水系统，1~6期积水及排水管道连接保持整体通道，最终将库内积水排入水处理厂进行处理合格后排放；沿库体外围设置有9~13层不等的石笼挡墙，库体表面雨水分两个部分通过排水沟收集排放，石笼挡墙的顶部排水沟负责收集挡墙以上部位的雨水、石笼挡墙底部的排水沟负责收集石笼顶部以下部分的雨水和库体周围道路的雨水，这些雨水最终汇集通过不同的管道排入Canal Bermejal河道外排；库体每隔一段均设置有雨水导流装置，确保建设期雨水能顺利导入库底的排水系统。尾矿堆积达到石笼顶部标高，即开始设置植被防护层施工，防护层随尾矿堆积同步进行，最终在植被防护层上进行合适的绿植种植，达到防止雨水冲刷破坏表土的情况发生。这些措施可有效降低各种安全风险，对尾矿库整体安全起到很好的保障作用。 | T60: 2025-05-01 | U60: 内部审查
A61: 57 | B61: 大陆黄金Buritica尾矿库2#库 | C61: 山谷型 | D61: 干式堆存 | E61: 2025-01-28 | F61: 哥伦比亚 | G61: 在建（1期建设） | H61: 8 | I61: 是 | J61: 是 | K61: 否 | L61: 是 | M61: 低潜在风险 | N61: 高 | O61: 项目2024.8环评批复，2025.1.28开工建设
A62: 58 | B62: 诺顿金田帕丁顿尾矿库 | C62: 矿坑回填 | D62: 尾矿储存在低于地表的矿坑内，未筑坝 | E62: 2003-01-05 | F62: 澳大利亚 | G62: 正在运行 | H62: 335（尾砂标高）（低于地表28米） | I62: 是 | J62: 是 | K62: 是 | L62: 是 | M62: 低潜在风险 | N62: 低 | O62: 2024-12-01 | P62: EOR审查 | Q62: 是 | R62: EOR审查认为：矿库目前整体安全性良好，事故风险较低、整体风险可控。 | S62: 公司从库区安全、尾矿排放、尾矿坝、库区周边排洪系统、回水系统、安全监测、安全管理和应急管理等方面落实澳大利亚国家相关法律法规要求和公司尾矿库安全运行管理制度。 | T62: 2025-12-01 | U62: 内部审查
A63: 59 | B63: 奥罗拉金矿有限公司尾矿库 | C63: 平地型 | D63: 下游式 | E63: 2015-07-16 | F63: 圭亚那 | G63: 正在运行 | H63: 71.5 | I63: 是 | J63: 是 | K63: 是 | L63: 是 | M63: 低潜在风险 | N63: 低 | O63: 2024-04-01 | P63: 内部审查 | Q63: 是 | R63: 内部审查结果为：该尾矿库自建设投用以来，尾矿库运行正常，期间未发生安全生产事故；根据监测结果尾矿库坝体未发生任何移动，坝体稳定未出现任何移动，坝体未见任何变形，裂缝、滑坡和渗漏，坝体外坡坡比、干滩长度、安全超高等均符合规范及设计要求。部分坝体收雨季雨水冲刷影响出现轻微侵蚀，需要及时安排修复。综上所述，奥罗拉近况尾矿库经审查，尾矿库库区及周边条件、尾矿库各系统（尾矿坝、防排洪系统、安全监测设施、防排渗设施、辅助设施、安全标志及安全管理等）均符合法律法规、规程、规范及设计要求，尾矿库为正常库。 | S63: 公司在尾矿库的施工、生产管理应严格按照相关规定进行，做好尾矿坝施工、尾矿输送、堆存和尾矿库的防洪、排洪、回水设施的维护管理工作，确保安全运行。公司加强了安全组织和安全技术措施，保证施工质量；实行工程建设监理制，选择责任心强、技术力量好的监理队伍，保证施工质量，确保施工安全和工期要求；建立巡坝护坝制度。明确护坝工人岗位责任制，加强尾矿库及坝坡巡视。安排24小时轮流值班，如发现沉陷、滑坡、裂缝、渗水等不良现象，及时反映调动人力物力进行处理。 | T63: 2025-06-01 | U63: 内部审查
A64: 60 | B64: 雄村铜矿吴坚村普奴尾矿库 | C64: 山谷型 | D64: 中线式下游废石一次筑坝法（分期） | E64: - | F64: 中国 | G64: 拟建 | H64: 0 | I64: 拟建，目前正在进行初步设计和安全设施设计等工作。
A65: 61 | B65: 湖南紫金锂业有限公司石落塘尾矿库 | C65: 山谷型 | D65: 上游法尾砂筑坝 | E65: 2024-01-01 | F65: 中国 | G65: 在建 | H65: 上游13米、中心坝头线21米、下游29米。 | I65: 目前依据被批准的设计进行建设 | J65: 是 | K65: 是 | L65: 是 | M65: 低潜在风险 | N65: 低 | O65: 2023-09-26 | P65: 湖南省应急管理厅 | Q65: / | R65: / | S65: 严格按照批复的安全设施设计进行建设，加强项目建设期间的安全管理，落实专人与施工班组“同上同下”，共同做好作业前中后安全确认工作，切实保障施工现场安全作业条件到位，确保安全生产。 | T65: 2026-01-01 | U65: 湖南省应急管理厅竣工验收审查
A66: 62 | B66: 贵州新恒基太平洞金矿新建尾矿库 | C66: 山谷型 | D66: 上游式 | E66: - | F66: 中国 | G66: 拟建 | H66: 目前正在进行用地报批等工作。
A67: 63 | B67: 新疆紫金黄金有限公司萨瓦亚尔顿金矿尾矿库 | C67: 山谷型 | D67: 中线式+上游式 | E67: 2023-03-01 | F67: 中国 | G67: 在建（分期建设） | H67: 60 | I67: 是 | J67: 是 | K67: 是 | L67: 是 | M67: 低潜在风险 | N67: 低 | O67: 2023-08-01 | P67: 自治区应急管理厅委托自治区安科院专家进行审查 | Q67: 是 | R67: 根据设计萨瓦亚尔顿金矿尾矿库为山谷型尾矿库，在沟口筑尾矿坝与山体合围成库。尾矿库内未发现泥石流、断裂、滑坡、坍塌、地下天然洞穴、岩溶、采空区、地裂缝等不良地质现象，无不稳定斜坡，山脊及局部较陡山坡基岩裸露区域坡脚有少量崩塌形成的落石，长度一般在20～40cm，规模小，破坏后果不严重，对尾矿库整体稳定影响不大。 | S67: 严格按照批复的安全设施设计进行建设，加强项目建设期间的安全管理，保障施工现场的作业安全，确保建设工程符合安全设施设计要求。 | T67: 2025-03-01 | U67: 自治区应急管理厅竣工验收审查
A68: 64 | B68: 西藏翔龙矿业有限公司朱诺铜矿白翁普曲尾矿库 | C68: 山谷型 | D68: 中线式 | E68: 2025-02-01 | F68: 中国 | G68: 在建 | H68: 0 | I68: 是 | J68: 是 | K68: 是 | L68: 是 | M68: 低潜在风险 | N68: 低 | O68: 2024-11-13 | P68: 国家矿山安全监察局 | Q68: / | R68: 2025年1月15日已取得《西藏翔龙矿业有限公司朱诺铜矿白翁普曲尾矿库工程安全设施设计审查意见书》 | S68: 严格按照批复的安全设施设计进行建设，加强项目建设期间的安全管理，保障施工现场的作业安全，确保建设工程符合安全设施设计要求。 | T68: 2026-06-01 | U68: 自治区应急管理厅竣工验收审查
A69: 65 | B69: 洛宁紫金黄金冶炼有限公司北村尾矿库 | C69: 山谷型 | D69: 上游式 | F69: 中国 | G69: 已闭库 | I69: 是 | J69: 是 | K69: 是 | L69: 是
A70: =ROW()-4 -> 66 | B70: 洛宁紫金黄金冶炼有限公司阳峪尾矿库 | C70: 山谷型 | D70: 上游式 | E70: 2023年5 | F70: 中国 | G70: 正在运行 | H70: 12.67 | I70: 是 | J70: 是 | K70: 是 | L70: 是 | M70: 低潜在风险 | N70: 低 | O70: 2023-05-01 | P70: 河南省应急管理厅 | Q70: 是 | R70: 洛宁紫金黄金冶炼有限公司阳峪村尾矿库的尾矿坝、防排洪设施、防排渗设施、地质灾害防护设施、安全监测设施及其它辅助设施按照安全设施设计、设计变更和设计施工图进行了施工，建设程序符合《建设项目安全设施“三同时”监督管理办法》及法律法规标准规范规定要求，试运行期间尾矿库安全管理运行情况正常，各项安全设施可靠有效，尾矿库的危险有害因素整体可控。 | S70: 生产运行过程中应重点防范，结构破坏、高处坠落、物体打击、机械伤害、车辆伤害、淹溺、不良地质条件、粉尘、噪声、振动等因素的危险度较低。 | T70: 2026-03-01 | U70: 河南省应急管理厅
A71: 67 | B71: 罗斯贝尔复合尾矿库系统（tsf1～3） | C71: 山谷型 | D71: 下游式 | E71: 1#：2003-2014 2#：2014-2024 3#：2023-2031 | F71: 苏里南 | G71: TSF 1#：回收利用 TSF 2#：正在运行 TSF 3#：在建/正在运行 | H71: 44-46 | I71: 是 | J71: 是 | K71: 是 | L71: 是 | M71: 低潜在风险 | N71: 低 | O71: 1905-07-16 | P71: 内部审查 | Q71: 是 | R71: 尾矿库运行正常，风险可控，无溃坝风险 | S71: 按计划进行尾矿库坝体位移监测，浸润线监测，尾矿库设有溢洪道，能够及时调节水位，已制定溃坝响应机制，能够及时做好应急响应。 | T71: 2025年第3季度 | U71: 外部审查
